{"text_format":"3","workbook":"xlsx","n_sheets":5,"sheets":["Table 0 (2)","Table 0","Events","Select PDGA Number","Player Summary"],"not_rendered":{"charts":3,"macros":1,"defined_names":3},"read":"whole","date_system":"1900"}

{"sheet":"Table 0 (2)","index":0,"n_rows":52,"n_cols":5,"rows_kept":52,"hidden":true}
["Effective Date","Year","Month","Rating","Rounds Used"]
["1998-08-08",{"$f":"YEAR(Player_Ratings[[#This Row],[Effective Date]])","v":1998},{"$f":"MONTH(Player_Ratings[[#This Row],[Effective Date]])","v":8},880,7]
["1999-04-25",{"$f":"YEAR(Player_Ratings[[#This Row],[Effective Date]])","v":1999},{"$f":"MONTH(Player_Ratings[[#This Row],[Effective Date]])","v":4},882,10]
["2000-04-30",{"$f":"YEAR(Player_Ratings[[#This Row],[Effective Date]])","v":2000},{"$f":"MONTH(Player_Ratings[[#This Row],[Effective Date]])","v":4},898,13]
["2000-08-27",{"$f":"YEAR(Player_Ratings[[#This Row],[Effective Date]])","v":2000},{"$f":"MONTH(Player_Ratings[[#This Row],[Effective Date]])","v":8},894,16]
["2000-12-16",{"$f":"YEAR(Player_Ratings[[#This Row],[Effective Date]])","v":2000},{"$f":"MONTH(Player_Ratings[[#This Row],[Effective Date]])","v":12},897,12]
["2001-04-29",{"$f":"YEAR(Player_Ratings[[#This Row],[Effective Date]])","v":2001},{"$f":"MONTH(Player_Ratings[[#This Row],[Effective Date]])","v":4},894,15]
["2002-03-31",{"$f":"YEAR(Player_Ratings[[#This Row],[Effective Date]])","v":2002},{"$f":"MONTH(Player_Ratings[[#This Row],[Effective Date]])","v":3},897,14]
["2002-05-27",{"$f":"YEAR(Player_Ratings[[#This Row],[Effective Date]])","v":2002},{"$f":"MONTH(Player_Ratings[[#This Row],[Effective Date]])","v":5},898,12]
["2002-12-31",{"$f":"YEAR(Player_Ratings[[#This Row],[Effective Date]])","v":2002},{"$f":"MONTH(Player_Ratings[[#This Row],[Effective Date]])","v":12},901,12]
["2003-03-15",{"$f":"YEAR(Player_Ratings[[#This Row],[Effective Date]])","v":2003},{"$f":"MONTH(Player_Ratings[[#This Row],[Effective Date]])","v":3},898,12]
["2004-02-15",{"$f":"YEAR(Player_Ratings[[#This Row],[Effective Date]])","v":2004},{"$f":"MONTH(Player_Ratings[[#This Row],[Effective Date]])","v":2},898,12]
["2004-05-15",{"$f":"YEAR(Player_Ratings[[#This Row],[Effective Date]])","v":2004},{"$f":"MONTH(Player_Ratings[[#This Row],[Effective Date]])","v":5},911,8]
["2004-09-15",{"$f":"YEAR(Player_Ratings[[#This Row],[Effective Date]])","v":2004},{"$f":"MONTH(Player_Ratings[[#This Row],[Effective Date]])","v":9},873,12]
["2005-05-15",{"$f":"YEAR(Player_Ratings[[#This Row],[Effective Date]])","v":2005},{"$f":"MONTH(Player_Ratings[[#This Row],[Effective Date]])","v":5},876,13]
["2005-07-15",{"$f":"YEAR(Player_Ratings[[#This Row],[Effective Date]])","v":2005},{"$f":"MONTH(Player_Ratings[[#This Row],[Effective Date]])","v":7},876,15]
["2005-09-15",{"$f":"YEAR(Player_Ratings[[#This Row],[Effective Date]])","v":2005},{"$f":"MONTH(Player_Ratings[[#This Row],[Effective Date]])","v":9},882,20]
["2006-04-18",{"$f":"YEAR(Player_Ratings[[#This Row],[Effective Date]])","v":2006},{"$f":"MONTH(Player_Ratings[[#This Row],[Effective Date]])","v":4},886,15]
["2006-06-27",{"$f":"YEAR(Player_Ratings[[#This Row],[Effective Date]])","v":2006},{"$f":"MONTH(Player_Ratings[[#This Row],[Effective Date]])","v":6},887,16]
["2006-09-19",{"$f":"YEAR(Player_Ratings[[#This Row],[Effective Date]])","v":2006},{"$f":"MONTH(Player_Ratings[[#This Row],[Effective Date]])","v":9},898,14]
["2008-04-29",{"$f":"YEAR(Player_Ratings[[#This Row],[Effective Date]])","v":2008},{"$f":"MONTH(Player_Ratings[[#This Row],[Effective Date]])","v":4},911,9]
["2008-06-24",{"$f":"YEAR(Player_Ratings[[#This Row],[Effective Date]])","v":2008},{"$f":"MONTH(Player_Ratings[[#This Row],[Effective Date]])","v":6},902,11]
["2008-09-09",{"$f":"YEAR(Player_Ratings[[#This Row],[Effective Date]])","v":2008},{"$f":"MONTH(Player_Ratings[[#This Row],[Effective Date]])","v":9},882,8]
["2009-03-17",{"$f":"YEAR(Player_Ratings[[#This Row],[Effective Date]])","v":2009},{"$f":"MONTH(Player_Ratings[[#This Row],[Effective Date]])","v":3},881,11]
["2009-07-21",{"$f":"YEAR(Player_Ratings[[#This Row],[Effective Date]])","v":2009},{"$f":"MONTH(Player_Ratings[[#This Row],[Effective Date]])","v":7},873,10]
["2010-03-23",{"$f":"YEAR(Player_Ratings[[#This Row],[Effective Date]])","v":2010},{"$f":"MONTH(Player_Ratings[[#This Row],[Effective Date]])","v":3},875,10]
["2010-08-31",{"$f":"YEAR(Player_Ratings[[#This Row],[Effective Date]])","v":2010},{"$f":"MONTH(Player_Ratings[[#This Row],[Effective Date]])","v":8},859,11]
["2011-03-29",{"$f":"YEAR(Player_Ratings[[#This Row],[Effective Date]])","v":2011},{"$f":"MONTH(Player_Ratings[[#This Row],[Effective Date]])","v":3},852,9]
["2011-11-22",{"$f":"YEAR(Player_Ratings[[#This Row],[Effective Date]])","v":2011},{"$f":"MONTH(Player_Ratings[[#This Row],[Effective Date]])","v":11},844,10]
["2012-03-23",{"$f":"YEAR(Player_Ratings[[#This Row],[Effective Date]])","v":2012},{"$f":"MONTH(Player_Ratings[[#This Row],[Effective Date]])","v":3},842,13]
["2012-09-18",{"$f":"YEAR(Player_Ratings[[#This Row],[Effective Date]])","v":2012},{"$f":"MONTH(Player_Ratings[[#This Row],[Effective Date]])","v":9},838,9]
["2013-03-26",{"$f":"YEAR(Player_Ratings[[#This Row],[Effective Date]])","v":2013},{"$f":"MONTH(Player_Ratings[[#This Row],[Effective Date]])","v":3},846,8]
["2013-10-01",{"$f":"YEAR(Player_Ratings[[#This Row],[Effective Date]])","v":2013},{"$f":"MONTH(Player_Ratings[[#This Row],[Effective Date]])","v":10},853,8]
["2014-03-18",{"$f":"YEAR(Player_Ratings[[#This Row],[Effective Date]])","v":2014},{"$f":"MONTH(Player_Ratings[[#This Row],[Effective Date]])","v":3},840,10]
["2015-03-24",{"$f":"YEAR(Player_Ratings[[#This Row],[Effective Date]])","v":2015},{"$f":"MONTH(Player_Ratings[[#This Row],[Effective Date]])","v":3},832,10]
["2015-09-01",{"$f":"YEAR(Player_Ratings[[#This Row],[Effective Date]])","v":2015},{"$f":"MONTH(Player_Ratings[[#This Row],[Effective Date]])","v":9},828,11]
["2015-10-20",{"$f":"YEAR(Player_Ratings[[#This Row],[Effective Date]])","v":2015},{"$f":"MONTH(Player_Ratings[[#This Row],[Effective Date]])","v":10},826,12]
["2015-11-17",{"$f":"YEAR(Player_Ratings[[#This Row],[Effective Date]])","v":2015},{"$f":"MONTH(Player_Ratings[[#This Row],[Effective Date]])","v":11},828,11]
["2016-07-19",{"$f":"YEAR(Player_Ratings[[#This Row],[Effective Date]])","v":2016},{"$f":"MONTH(Player_Ratings[[#This Row],[Effective Date]])","v":7},810,6]
["2017-11-14",{"$f":"YEAR(Player_Ratings[[#This Row],[Effective Date]])","v":2017},{"$f":"MONTH(Player_Ratings[[#This Row],[Effective Date]])","v":11},781,6]
["2018-03-13",{"$f":"YEAR(Player_Ratings[[#This Row],[Effective Date]])","v":2018},{"$f":"MONTH(Player_Ratings[[#This Row],[Effective Date]])","v":3},801,8]
["2018-06-26",{"$f":"YEAR(Player_Ratings[[#This Row],[Effective Date]])","v":2018},{"$f":"MONTH(Player_Ratings[[#This Row],[Effective Date]])","v":6},800,10]
["2018-10-30",{"$f":"YEAR(Player_Ratings[[#This Row],[Effective Date]])","v":2018},{"$f":"MONTH(Player_Ratings[[#This Row],[Effective Date]])","v":10},802,13]
["2019-03-19",{"$f":"YEAR(Player_Ratings[[#This Row],[Effective Date]])","v":2019},{"$f":"MONTH(Player_Ratings[[#This Row],[Effective Date]])","v":3},812,10]
["2019-06-11",{"$f":"YEAR(Player_Ratings[[#This Row],[Effective Date]])","v":2019},{"$f":"MONTH(Player_Ratings[[#This Row],[Effective Date]])","v":6},824,9]
["2019-08-13",{"$f":"YEAR(Player_Ratings[[#This Row],[Effective Date]])","v":2019},{"$f":"MONTH(Player_Ratings[[#This Row],[Effective Date]])","v":8},816,9]
["2019-11-12",{"$f":"YEAR(Player_Ratings[[#This Row],[Effective Date]])","v":2019},{"$f":"MONTH(Player_Ratings[[#This Row],[Effective Date]])","v":11},815,11]
["2020-03-10",{"$f":"YEAR(Player_Ratings[[#This Row],[Effective Date]])","v":2020},{"$f":"MONTH(Player_Ratings[[#This Row],[Effective Date]])","v":3},809,11]
["2021-03-09",{"$f":"YEAR(Player_Ratings[[#This Row],[Effective Date]])","v":2021},{"$f":"MONTH(Player_Ratings[[#This Row],[Effective Date]])","v":3},809,11]
["2021-04-13",{"$f":"YEAR(Player_Ratings[[#This Row],[Effective Date]])","v":2021},{"$f":"MONTH(Player_Ratings[[#This Row],[Effective Date]])","v":4},809,11]
["2021-05-11",{"$f":"YEAR(Player_Ratings[[#This Row],[Effective Date]])","v":2021},{"$f":"MONTH(Player_Ratings[[#This Row],[Effective Date]])","v":5},809,11]
["2021-11-09",{"$f":"YEAR(Player_Ratings[[#This Row],[Effective Date]])","v":2021},{"$f":"MONTH(Player_Ratings[[#This Row],[Effective Date]])","v":11},809,11]

{"sheet":"Table 0","index":1,"n_rows":89,"n_cols":15,"rows_kept":89,"hidden":true}
["Tournament","Tier","Date","Tournament End Date","Year","Month","Division","Round","Score","Rating","Evaluated","Player Rating at time of round","Residual","Adjusted Round","Included"]
["The 42nd Annual Wintertime Open Presented by Paul McBeth (Pro Weekend)","A","14-Feb to 16-Feb-2020",{"$f":"DATEVALUE(IF(ISERROR(FIND(\"to\",C2,1))=TRUE,C2,RIGHT(C2,LEN(C2)-FIND(\"to\",C2,1)-2)))","v":"2020-02-16"},{"$f":"YEAR(Round_Ratings[[#This Row],[Tournament End Date]])","v":2020},{"$f":"MONTH(Round_Ratings[[#This Row],[Tournament End Date]])","v":2},"MP70","3",79,798,"Yes",{"$f":"INDEX('Table 0 (2)'!D:D,MATCH(Round_Ratings[[#This Row],[Tournament End Date]],'Table 0 (2)'!A:A,1),1)","v":815},{"$f":"Round_Ratings[[#This Row],[Rating]]-Round_Ratings[[#This Row],[Player Rating at time of round]]","v":-17},{"$f":"IF(ISERROR(_xlfn.NUMBERVALUE(Round_Ratings[[#This Row],[Round]]))=FALSE,_xlfn.NUMBERVALUE(Round_Ratings[[#This Row],[Round]]),COUNTIFS(A:A,Round_Ratings[[#This Row],[Tournament]],D:D,Round_Ratings[[#This Row],[Tournament End Date]]))","v":3},"Yes"]
["The 42nd Annual Wintertime Open Presented by Paul McBeth (Pro Weekend)","A","14-Feb to 16-Feb-2020","2020-02-16",{"$f":"YEAR(Round_Ratings[[#This Row],[Tournament End Date]])","v":2020},{"$f":"MONTH(Round_Ratings[[#This Row],[Tournament End Date]])","v":2},"MP70","2",82,771,"Yes",{"$f":"INDEX('Table 0 (2)'!D:D,MATCH(Round_Ratings[[#This Row],[Tournament End Date]],'Table 0 (2)'!A:A,1),1)","v":815},{"$f":"Round_Ratings[[#This Row],[Rating]]-Round_Ratings[[#This Row],[Player Rating at time of round]]","v":-44},{"$f":"IF(ISERROR(_xlfn.NUMBERVALUE(Round_Ratings[[#This Row],[Round]]))=FALSE,_xlfn.NUMBERVALUE(Round_Ratings[[#This Row],[Round]]),COUNTIFS(A:A,Round_Ratings[[#This Row],[Tournament]],D:D,Round_Ratings[[#This Row],[Tournament End Date]]))","v":2},"Yes"]
["The 42nd Annual Wintertime Open Presented by Paul McBeth (Pro Weekend)","A","14-Feb to 16-Feb-2020","2020-02-16",{"$f":"YEAR(Round_Ratings[[#This Row],[Tournament End Date]])","v":2020},{"$f":"MONTH(Round_Ratings[[#This Row],[Tournament End Date]])","v":2},"MP70","1",78,806,"Yes",{"$f":"INDEX('Table 0 (2)'!D:D,MATCH(Round_Ratings[[#This Row],[Tournament End Date]],'Table 0 (2)'!A:A,1),1)","v":815},{"$f":"Round_Ratings[[#This Row],[Rating]]-Round_Ratings[[#This Row],[Player Rating at time of round]]","v":-9},{"$f":"IF(ISERROR(_xlfn.NUMBERVALUE(Round_Ratings[[#This Row],[Round]]))=FALSE,_xlfn.NUMBERVALUE(Round_Ratings[[#This Row],[Round]]),COUNTIFS(A:A,Round_Ratings[[#This Row],[Tournament]],D:D,Round_Ratings[[#This Row],[Tournament End Date]]))","v":1},"Yes"]
["The Ed Headrick Disc Golf Hall of Fame Classic presented by REC TEC Grills - A Tier","A","11-Oct to 13-Oct-2019","2019-10-13",{"$f":"YEAR(Round_Ratings[[#This Row],[Tournament End Date]])","v":2019},{"$f":"MONTH(Round_Ratings[[#This Row],[Tournament End Date]])","v":10},"MP70","3",85,724,"Yes",{"$f":"INDEX('Table 0 (2)'!D:D,MATCH(Round_Ratings[[#This Row],[Tournament End Date]],'Table 0 (2)'!A:A,1),1)","v":816},{"$f":"Round_Ratings[[#This Row],[Rating]]-Round_Ratings[[#This Row],[Player Rating at time of round]]","v":-92},{"$f":"IF(ISERROR(_xlfn.NUMBERVALUE(Round_Ratings[[#This Row],[Round]]))=FALSE,_xlfn.NUMBERVALUE(Round_Ratings[[#This Row],[Round]]),COUNTIFS(A:A,Round_Ratings[[#This Row],[Tournament]],D:D,Round_Ratings[[#This Row],[Tournament End Date]]))","v":3},"No"]
["The Ed Headrick Disc Golf Hall of Fame Classic presented by REC TEC Grills - A Tier","A","11-Oct to 13-Oct-2019","2019-10-13",{"$f":"YEAR(Round_Ratings[[#This Row],[Tournament End Date]])","v":2019},{"$f":"MONTH(Round_Ratings[[#This Row],[Tournament End Date]])","v":10},"MP70","2",75,812,"Yes",{"$f":"INDEX('Table 0 (2)'!D:D,MATCH(Round_Ratings[[#This Row],[Tournament End Date]],'Table 0 (2)'!A:A,1),1)","v":816},{"$f":"Round_Ratings[[#This Row],[Rating]]-Round_Ratings[[#This Row],[Player Rating at time of round]]","v":-4},{"$f":"IF(ISERROR(_xlfn.NUMBERVALUE(Round_Ratings[[#This Row],[Round]]))=FALSE,_xlfn.NUMBERVALUE(Round_Ratings[[#This Row],[Round]]),COUNTIFS(A:A,Round_Ratings[[#This Row],[Tournament]],D:D,Round_Ratings[[#This Row],[Tournament End Date]]))","v":2},"Yes"]
["The Ed Headrick Disc Golf Hall of Fame Classic presented by REC TEC Grills - A Tier","A","11-Oct to 13-Oct-2019","2019-10-13",{"$f":"YEAR(Round_Ratings[[#This Row],[Tournament End Date]])","v":2019},{"$f":"MONTH(Round_Ratings[[#This Row],[Tournament End Date]])","v":10},"MP70","1",65,804,"Yes",{"$f":"INDEX('Table 0 (2)'!D:D,MATCH(Round_Ratings[[#This Row],[Tournament End Date]],'Table 0 (2)'!A:A,1),1)","v":816},{"$f":"Round_Ratings[[#This Row],[Rating]]-Round_Ratings[[#This Row],[Player Rating at time of round]]","v":-12},{"$f":"IF(ISERROR(_xlfn.NUMBERVALUE(Round_Ratings[[#This Row],[Round]]))=FALSE,_xlfn.NUMBERVALUE(Round_Ratings[[#This Row],[Round]]),COUNTIFS(A:A,Round_Ratings[[#This Row],[Tournament]],D:D,Round_Ratings[[#This Row],[Tournament End Date]]))","v":1},"Yes"]
["2019 World Flying Disc Federation Overall Championships Sponsored by Discraft- Disc Golf Event","XC","10-Jul-2019","2019-07-10",{"$f":"YEAR(Round_Ratings[[#This Row],[Tournament End Date]])","v":2019},{"$f":"MONTH(Round_Ratings[[#This Row],[Tournament End Date]])","v":7},"MPO","2",68,819,"Yes",{"$f":"INDEX('Table 0 (2)'!D:D,MATCH(Round_Ratings[[#This Row],[Tournament End Date]],'Table 0 (2)'!A:A,1),1)","v":824},{"$f":"Round_Ratings[[#This Row],[Rating]]-Round_Ratings[[#This Row],[Player Rating at time of round]]","v":-5},{"$f":"IF(ISERROR(_xlfn.NUMBERVALUE(Round_Ratings[[#This Row],[Round]]))=FALSE,_xlfn.NUMBERVALUE(Round_Ratings[[#This Row],[Round]]),COUNTIFS(A:A,Round_Ratings[[#This Row],[Tournament]],D:D,Round_Ratings[[#This Row],[Tournament End Date]]))","v":2},"Yes"]
["2019 World Flying Disc Federation Overall Championships Sponsored by Discraft- Disc Golf Event","XC","10-Jul-2019","2019-07-10",{"$f":"YEAR(Round_Ratings[[#This Row],[Tournament End Date]])","v":2019},{"$f":"MONTH(Round_Ratings[[#This Row],[Tournament End Date]])","v":7},"MPO","1",71,789,"Yes",{"$f":"INDEX('Table 0 (2)'!D:D,MATCH(Round_Ratings[[#This Row],[Tournament End Date]],'Table 0 (2)'!A:A,1),1)","v":824},{"$f":"Round_Ratings[[#This Row],[Rating]]-Round_Ratings[[#This Row],[Player Rating at time of round]]","v":-35},{"$f":"IF(ISERROR(_xlfn.NUMBERVALUE(Round_Ratings[[#This Row],[Round]]))=FALSE,_xlfn.NUMBERVALUE(Round_Ratings[[#This Row],[Round]]),COUNTIFS(A:A,Round_Ratings[[#This Row],[Tournament]],D:D,Round_Ratings[[#This Row],[Tournament End Date]]))","v":1},"Yes"]
["Pasadena Senior Olympics Disc Golf 2019","C","2-Jun-2019","2019-06-02",{"$f":"YEAR(Round_Ratings[[#This Row],[Tournament End Date]])","v":2019},{"$f":"MONTH(Round_Ratings[[#This Row],[Tournament End Date]])","v":6},"MP70","2",56,862,"Yes",{"$f":"INDEX('Table 0 (2)'!D:D,MATCH(Round_Ratings[[#This Row],[Tournament End Date]],'Table 0 (2)'!A:A,1),1)","v":812},{"$f":"Round_Ratings[[#This Row],[Rating]]-Round_Ratings[[#This Row],[Player Rating at time of round]]","v":50},{"$f":"IF(ISERROR(_xlfn.NUMBERVALUE(Round_Ratings[[#This Row],[Round]]))=FALSE,_xlfn.NUMBERVALUE(Round_Ratings[[#This Row],[Round]]),COUNTIFS(A:A,Round_Ratings[[#This Row],[Tournament]],D:D,Round_Ratings[[#This Row],[Tournament End Date]]))","v":2},"Yes"]
["Pasadena Senior Olympics Disc Golf 2019","C","2-Jun-2019","2019-06-02",{"$f":"YEAR(Round_Ratings[[#This Row],[Tournament End Date]])","v":2019},{"$f":"MONTH(Round_Ratings[[#This Row],[Tournament End Date]])","v":6},"MP70","1",57,850,"Yes",{"$f":"INDEX('Table 0 (2)'!D:D,MATCH(Round_Ratings[[#This Row],[Tournament End Date]],'Table 0 (2)'!A:A,1),1)","v":812},{"$f":"Round_Ratings[[#This Row],[Rating]]-Round_Ratings[[#This Row],[Player Rating at time of round]]","v":38},{"$f":"IF(ISERROR(_xlfn.NUMBERVALUE(Round_Ratings[[#This Row],[Round]]))=FALSE,_xlfn.NUMBERVALUE(Round_Ratings[[#This Row],[Round]]),COUNTIFS(A:A,Round_Ratings[[#This Row],[Tournament]],D:D,Round_Ratings[[#This Row],[Tournament End Date]]))","v":1},"Yes"]
["The 41st Annual Wintertime Open (Pros) Presented By Supreme Flight","A","15-Feb to 17-Feb-2019","2019-02-17",{"$f":"YEAR(Round_Ratings[[#This Row],[Tournament End Date]])","v":2019},{"$f":"MONTH(Round_Ratings[[#This Row],[Tournament End Date]])","v":2},"MP70","2",84,793,"Yes",{"$f":"INDEX('Table 0 (2)'!D:D,MATCH(Round_Ratings[[#This Row],[Tournament End Date]],'Table 0 (2)'!A:A,1),1)","v":802},{"$f":"Round_Ratings[[#This Row],[Rating]]-Round_Ratings[[#This Row],[Player Rating at time of round]]","v":-9},{"$f":"IF(ISERROR(_xlfn.NUMBERVALUE(Round_Ratings[[#This Row],[Round]]))=FALSE,_xlfn.NUMBERVALUE(Round_Ratings[[#This Row],[Round]]),COUNTIFS(A:A,Round_Ratings[[#This Row],[Tournament]],D:D,Round_Ratings[[#This Row],[Tournament End Date]]))","v":2},"Yes"]
["The 41st Annual Wintertime Open (Pros) Presented By Supreme Flight","A","15-Feb to 17-Feb-2019","2019-02-17",{"$f":"YEAR(Round_Ratings[[#This Row],[Tournament End Date]])","v":2019},{"$f":"MONTH(Round_Ratings[[#This Row],[Tournament End Date]])","v":2},"MP70","1",78,842,"Yes",{"$f":"INDEX('Table 0 (2)'!D:D,MATCH(Round_Ratings[[#This Row],[Tournament End Date]],'Table 0 (2)'!A:A,1),1)","v":802},{"$f":"Round_Ratings[[#This Row],[Rating]]-Round_Ratings[[#This Row],[Player Rating at time of round]]","v":40},{"$f":"IF(ISERROR(_xlfn.NUMBERVALUE(Round_Ratings[[#This Row],[Round]]))=FALSE,_xlfn.NUMBERVALUE(Round_Ratings[[#This Row],[Round]]),COUNTIFS(A:A,Round_Ratings[[#This Row],[Tournament]],D:D,Round_Ratings[[#This Row],[Tournament End Date]]))","v":1},"Yes"]
["The Ed Headrick Disc Golf Hall of Fame Classic presented by REC TEC Grills","A","12-Oct to 14-Oct-2018","2018-10-14",{"$f":"YEAR(Round_Ratings[[#This Row],[Tournament End Date]])","v":2018},{"$f":"MONTH(Round_Ratings[[#This Row],[Tournament End Date]])","v":10},"MP70","3",78,799,"No",{"$f":"INDEX('Table 0 (2)'!D:D,MATCH(Round_Ratings[[#This Row],[Tournament End Date]],'Table 0 (2)'!A:A,1),1)","v":800},{"$f":"Round_Ratings[[#This Row],[Rating]]-Round_Ratings[[#This Row],[Player Rating at time of round]]","v":-1},{"$f":"IF(ISERROR(_xlfn.NUMBERVALUE(Round_Ratings[[#This Row],[Round]]))=FALSE,_xlfn.NUMBERVALUE(Round_Ratings[[#This Row],[Round]]),COUNTIFS(A:A,Round_Ratings[[#This Row],[Tournament]],D:D,Round_Ratings[[#This Row],[Tournament End Date]]))","v":3},"No"]
["The Ed Headrick Disc Golf Hall of Fame Classic presented by REC TEC Grills","A","12-Oct to 14-Oct-2018","2018-10-14",{"$f":"YEAR(Round_Ratings[[#This Row],[Tournament End Date]])","v":2018},{"$f":"MONTH(Round_Ratings[[#This Row],[Tournament End Date]])","v":10},"MP70","2",82,800,"No",{"$f":"INDEX('Table 0 (2)'!D:D,MATCH(Round_Ratings[[#This Row],[Tournament End Date]],'Table 0 (2)'!A:A,1),1)","v":800},{"$f":"Round_Ratings[[#This Row],[Rating]]-Round_Ratings[[#This Row],[Player Rating at time of round]]","v":0},{"$f":"IF(ISERROR(_xlfn.NUMBERVALUE(Round_Ratings[[#This Row],[Round]]))=FALSE,_xlfn.NUMBERVALUE(Round_Ratings[[#This Row],[Round]]),COUNTIFS(A:A,Round_Ratings[[#This Row],[Tournament]],D:D,Round_Ratings[[#This Row],[Tournament End Date]]))","v":2},"No"]
["The Ed Headrick Disc Golf Hall of Fame Classic presented by REC TEC Grills","A","12-Oct to 14-Oct-2018","2018-10-14",{"$f":"YEAR(Round_Ratings[[#This Row],[Tournament End Date]])","v":2018},{"$f":"MONTH(Round_Ratings[[#This Row],[Tournament End Date]])","v":10},"MP70","1",77,808,"No",{"$f":"INDEX('Table 0 (2)'!D:D,MATCH(Round_Ratings[[#This Row],[Tournament End Date]],'Table 0 (2)'!A:A,1),1)","v":800},{"$f":"Round_Ratings[[#This Row],[Rating]]-Round_Ratings[[#This Row],[Player Rating at time of round]]","v":8},{"$f":"IF(ISERROR(_xlfn.NUMBERVALUE(Round_Ratings[[#This Row],[Round]]))=FALSE,_xlfn.NUMBERVALUE(Round_Ratings[[#This Row],[Round]]),COUNTIFS(A:A,Round_Ratings[[#This Row],[Tournament]],D:D,Round_Ratings[[#This Row],[Tournament End Date]]))","v":1},"No"]
["Pasadena Senior Games 2018","C","3-Jun-2018","2018-06-03",{"$f":"YEAR(Round_Ratings[[#This Row],[Tournament End Date]])","v":2018},{"$f":"MONTH(Round_Ratings[[#This Row],[Tournament End Date]])","v":6},"MP70","2",60,810,"No",{"$f":"INDEX('Table 0 (2)'!D:D,MATCH(Round_Ratings[[#This Row],[Tournament End Date]],'Table 0 (2)'!A:A,1),1)","v":801},{"$f":"Round_Ratings[[#This Row],[Rating]]-Round_Ratings[[#This Row],[Player Rating at time of round]]","v":9},{"$f":"IF(ISERROR(_xlfn.NUMBERVALUE(Round_Ratings[[#This Row],[Round]]))=FALSE,_xlfn.NUMBERVALUE(Round_Ratings[[#This Row],[Round]]),COUNTIFS(A:A,Round_Ratings[[#This Row],[Tournament]],D:D,Round_Ratings[[#This Row],[Tournament End Date]]))","v":2},"No"]
["Pasadena Senior Games 2018","C","3-Jun-2018","2018-06-03",{"$f":"YEAR(Round_Ratings[[#This Row],[Tournament End Date]])","v":2018},{"$f":"MONTH(Round_Ratings[[#This Row],[Tournament End Date]])","v":6},"MP70","1",62,785,"No",{"$f":"INDEX('Table 0 (2)'!D:D,MATCH(Round_Ratings[[#This Row],[Tournament End Date]],'Table 0 (2)'!A:A,1),1)","v":801},{"$f":"Round_Ratings[[#This Row],[Rating]]-Round_Ratings[[#This Row],[Player Rating at time of round]]","v":-16},{"$f":"IF(ISERROR(_xlfn.NUMBERVALUE(Round_Ratings[[#This Row],[Round]]))=FALSE,_xlfn.NUMBERVALUE(Round_Ratings[[#This Row],[Round]]),COUNTIFS(A:A,Round_Ratings[[#This Row],[Tournament]],D:D,Round_Ratings[[#This Row],[Tournament End Date]]))","v":1},"No"]
["40th Annual Wintertime Open - Pro presented by CalShieldHomeLoans.com","A","16-Feb to 18-Feb-2018","2018-02-18",{"$f":"YEAR(Round_Ratings[[#This Row],[Tournament End Date]])","v":2018},{"$f":"MONTH(Round_Ratings[[#This Row],[Tournament End Date]])","v":2},"MP70","3",82,799,"No",{"$f":"INDEX('Table 0 (2)'!D:D,MATCH(Round_Ratings[[#This Row],[Tournament End Date]],'Table 0 (2)'!A:A,1),1)","v":781},{"$f":"Round_Ratings[[#This Row],[Rating]]-Round_Ratings[[#This Row],[Player Rating at time of round]]","v":18},{"$f":"IF(ISERROR(_xlfn.NUMBERVALUE(Round_Ratings[[#This Row],[Round]]))=FALSE,_xlfn.NUMBERVALUE(Round_Ratings[[#This Row],[Round]]),COUNTIFS(A:A,Round_Ratings[[#This Row],[Tournament]],D:D,Round_Ratings[[#This Row],[Tournament End Date]]))","v":3},"No"]
["40th Annual Wintertime Open - Pro presented by CalShieldHomeLoans.com","A","16-Feb to 18-Feb-2018","2018-02-18",{"$f":"YEAR(Round_Ratings[[#This Row],[Tournament End Date]])","v":2018},{"$f":"MONTH(Round_Ratings[[#This Row],[Tournament End Date]])","v":2},"MP70","2",77,841,"No",{"$f":"INDEX('Table 0 (2)'!D:D,MATCH(Round_Ratings[[#This Row],[Tournament End Date]],'Table 0 (2)'!A:A,1),1)","v":781},{"$f":"Round_Ratings[[#This Row],[Rating]]-Round_Ratings[[#This Row],[Player Rating at time of round]]","v":60},{"$f":"IF(ISERROR(_xlfn.NUMBERVALUE(Round_Ratings[[#This Row],[Round]]))=FALSE,_xlfn.NUMBERVALUE(Round_Ratings[[#This Row],[Round]]),COUNTIFS(A:A,Round_Ratings[[#This Row],[Tournament]],D:D,Round_Ratings[[#This Row],[Tournament End Date]]))","v":2},"No"]
["40th Annual Wintertime Open - Pro presented by CalShieldHomeLoans.com","A","16-Feb to 18-Feb-2018","2018-02-18",{"$f":"YEAR(Round_Ratings[[#This Row],[Tournament End Date]])","v":2018},{"$f":"MONTH(Round_Ratings[[#This Row],[Tournament End Date]])","v":2},"MP70","1",79,824,"No",{"$f":"INDEX('Table 0 (2)'!D:D,MATCH(Round_Ratings[[#This Row],[Tournament End Date]],'Table 0 (2)'!A:A,1),1)","v":781},{"$f":"Round_Ratings[[#This Row],[Rating]]-Round_Ratings[[#This Row],[Player Rating at time of round]]","v":43},{"$f":"IF(ISERROR(_xlfn.NUMBERVALUE(Round_Ratings[[#This Row],[Round]]))=FALSE,_xlfn.NUMBERVALUE(Round_Ratings[[#This Row],[Round]]),COUNTIFS(A:A,Round_Ratings[[#This Row],[Tournament]],D:D,Round_Ratings[[#This Row],[Tournament End Date]]))","v":1},"No"]
["Ice Bowl In Paradise 2018","C","20-Jan-2018","2018-01-20",{"$f":"YEAR(Round_Ratings[[#This Row],[Tournament End Date]])","v":2018},{"$f":"MONTH(Round_Ratings[[#This Row],[Tournament End Date]])","v":1},"MP70","1",71,823,"No",{"$f":"INDEX('Table 0 (2)'!D:D,MATCH(Round_Ratings[[#This Row],[Tournament End Date]],'Table 0 (2)'!A:A,1),1)","v":781},{"$f":"Round_Ratings[[#This Row],[Rating]]-Round_Ratings[[#This Row],[Player Rating at time of round]]","v":42},{"$f":"IF(ISERROR(_xlfn.NUMBERVALUE(Round_Ratings[[#This Row],[Round]]))=FALSE,_xlfn.NUMBERVALUE(Round_Ratings[[#This Row],[Round]]),COUNTIFS(A:A,Round_Ratings[[#This Row],[Tournament]],D:D,Round_Ratings[[#This Row],[Tournament End Date]]))","v":1},"No"]
["Ed Headrick Disc Golf Hall of Fame Classic presented by ProActive Sports Disc Golf - A-Tier","A","13-Oct to 15-Oct-2017","2017-10-15",{"$f":"YEAR(Round_Ratings[[#This Row],[Tournament End Date]])","v":2017},{"$f":"MONTH(Round_Ratings[[#This Row],[Tournament End Date]])","v":10},"MPS","4",75,791,"No",{"$f":"INDEX('Table 0 (2)'!D:D,MATCH(Round_Ratings[[#This Row],[Tournament End Date]],'Table 0 (2)'!A:A,1),1)","v":810},{"$f":"Round_Ratings[[#This Row],[Rating]]-Round_Ratings[[#This Row],[Player Rating at time of round]]","v":-19},{"$f":"IF(ISERROR(_xlfn.NUMBERVALUE(Round_Ratings[[#This Row],[Round]]))=FALSE,_xlfn.NUMBERVALUE(Round_Ratings[[#This Row],[Round]]),COUNTIFS(A:A,Round_Ratings[[#This Row],[Tournament]],D:D,Round_Ratings[[#This Row],[Tournament End Date]]))","v":4},"No"]
["Ed Headrick Disc Golf Hall of Fame Classic presented by ProActive Sports Disc Golf - A-Tier","A","13-Oct to 15-Oct-2017","2017-10-15",{"$f":"YEAR(Round_Ratings[[#This Row],[Tournament End Date]])","v":2017},{"$f":"MONTH(Round_Ratings[[#This Row],[Tournament End Date]])","v":10},"MPS","3",67,789,"No",{"$f":"INDEX('Table 0 (2)'!D:D,MATCH(Round_Ratings[[#This Row],[Tournament End Date]],'Table 0 (2)'!A:A,1),1)","v":810},{"$f":"Round_Ratings[[#This Row],[Rating]]-Round_Ratings[[#This Row],[Player Rating at time of round]]","v":-21},{"$f":"IF(ISERROR(_xlfn.NUMBERVALUE(Round_Ratings[[#This Row],[Round]]))=FALSE,_xlfn.NUMBERVALUE(Round_Ratings[[#This Row],[Round]]),COUNTIFS(A:A,Round_Ratings[[#This Row],[Tournament]],D:D,Round_Ratings[[#This Row],[Tournament End Date]]))","v":3},"No"]
["Ed Headrick Disc Golf Hall of Fame Classic presented by ProActive Sports Disc Golf - A-Tier","A","13-Oct to 15-Oct-2017","2017-10-15",{"$f":"YEAR(Round_Ratings[[#This Row],[Tournament End Date]])","v":2017},{"$f":"MONTH(Round_Ratings[[#This Row],[Tournament End Date]])","v":10},"MPS","2",80,773,"No",{"$f":"INDEX('Table 0 (2)'!D:D,MATCH(Round_Ratings[[#This Row],[Tournament End Date]],'Table 0 (2)'!A:A,1),1)","v":810},{"$f":"Round_Ratings[[#This Row],[Rating]]-Round_Ratings[[#This Row],[Player Rating at time of round]]","v":-37},{"$f":"IF(ISERROR(_xlfn.NUMBERVALUE(Round_Ratings[[#This Row],[Round]]))=FALSE,_xlfn.NUMBERVALUE(Round_Ratings[[#This Row],[Round]]),COUNTIFS(A:A,Round_Ratings[[#This Row],[Tournament]],D:D,Round_Ratings[[#This Row],[Tournament End Date]]))","v":2},"No"]
["Ed Headrick Disc Golf Hall of Fame Classic presented by ProActive Sports Disc Golf - A-Tier","A","13-Oct to 15-Oct-2017","2017-10-15",{"$f":"YEAR(Round_Ratings[[#This Row],[Tournament End Date]])","v":2017},{"$f":"MONTH(Round_Ratings[[#This Row],[Tournament End Date]])","v":10},"MPS","1",78,763,"No",{"$f":"INDEX('Table 0 (2)'!D:D,MATCH(Round_Ratings[[#This Row],[Tournament End Date]],'Table 0 (2)'!A:A,1),1)","v":810},{"$f":"Round_Ratings[[#This Row],[Rating]]-Round_Ratings[[#This Row],[Player Rating at time of round]]","v":-47},{"$f":"IF(ISERROR(_xlfn.NUMBERVALUE(Round_Ratings[[#This Row],[Round]]))=FALSE,_xlfn.NUMBERVALUE(Round_Ratings[[#This Row],[Round]]),COUNTIFS(A:A,Round_Ratings[[#This Row],[Tournament]],D:D,Round_Ratings[[#This Row],[Tournament End Date]]))","v":1},"No"]
["Pasadena Senior Olympics Disc Golf","C","18-Jun-2016","2016-06-18",{"$f":"YEAR(Round_Ratings[[#This Row],[Tournament End Date]])","v":2016},{"$f":"MONTH(Round_Ratings[[#This Row],[Tournament End Date]])","v":6},"mps","2",67,784,"No",{"$f":"INDEX('Table 0 (2)'!D:D,MATCH(Round_Ratings[[#This Row],[Tournament End Date]],'Table 0 (2)'!A:A,1),1)","v":828},{"$f":"Round_Ratings[[#This Row],[Rating]]-Round_Ratings[[#This Row],[Player Rating at time of round]]","v":-44},{"$f":"IF(ISERROR(_xlfn.NUMBERVALUE(Round_Ratings[[#This Row],[Round]]))=FALSE,_xlfn.NUMBERVALUE(Round_Ratings[[#This Row],[Round]]),COUNTIFS(A:A,Round_Ratings[[#This Row],[Tournament]],D:D,Round_Ratings[[#This Row],[Tournament End Date]]))","v":2},"No"]
["Pasadena Senior Olympics Disc Golf","C","18-Jun-2016","2016-06-18",{"$f":"YEAR(Round_Ratings[[#This Row],[Tournament End Date]])","v":2016},{"$f":"MONTH(Round_Ratings[[#This Row],[Tournament End Date]])","v":6},"mps","1",67,784,"No",{"$f":"INDEX('Table 0 (2)'!D:D,MATCH(Round_Ratings[[#This Row],[Tournament End Date]],'Table 0 (2)'!A:A,1),1)","v":828},{"$f":"Round_Ratings[[#This Row],[Rating]]-Round_Ratings[[#This Row],[Player Rating at time of round]]","v":-44},{"$f":"IF(ISERROR(_xlfn.NUMBERVALUE(Round_Ratings[[#This Row],[Round]]))=FALSE,_xlfn.NUMBERVALUE(Round_Ratings[[#This Row],[Round]]),COUNTIFS(A:A,Round_Ratings[[#This Row],[Tournament]],D:D,Round_Ratings[[#This Row],[Tournament End Date]]))","v":1},"No"]
["2015 WFDF World Overall Championships","C","20-Jul to 25-Jul-2015","2015-07-25",{"$f":"YEAR(Round_Ratings[[#This Row],[Tournament End Date]])","v":2015},{"$f":"MONTH(Round_Ratings[[#This Row],[Tournament End Date]])","v":7},"MPO","1",74,806,"No",{"$f":"INDEX('Table 0 (2)'!D:D,MATCH(Round_Ratings[[#This Row],[Tournament End Date]],'Table 0 (2)'!A:A,1),1)","v":832},{"$f":"Round_Ratings[[#This Row],[Rating]]-Round_Ratings[[#This Row],[Player Rating at time of round]]","v":-26},{"$f":"IF(ISERROR(_xlfn.NUMBERVALUE(Round_Ratings[[#This Row],[Round]]))=FALSE,_xlfn.NUMBERVALUE(Round_Ratings[[#This Row],[Round]]),COUNTIFS(A:A,Round_Ratings[[#This Row],[Tournament]],D:D,Round_Ratings[[#This Row],[Tournament End Date]]))","v":1},"No"]
["37th Annual Wintertime Open - PRO","B","14-Feb to 15-Feb-2015","2015-02-15",{"$f":"YEAR(Round_Ratings[[#This Row],[Tournament End Date]])","v":2015},{"$f":"MONTH(Round_Ratings[[#This Row],[Tournament End Date]])","v":2},"mps","3",77,842,"No",{"$f":"INDEX('Table 0 (2)'!D:D,MATCH(Round_Ratings[[#This Row],[Tournament End Date]],'Table 0 (2)'!A:A,1),1)","v":840},{"$f":"Round_Ratings[[#This Row],[Rating]]-Round_Ratings[[#This Row],[Player Rating at time of round]]","v":2},{"$f":"IF(ISERROR(_xlfn.NUMBERVALUE(Round_Ratings[[#This Row],[Round]]))=FALSE,_xlfn.NUMBERVALUE(Round_Ratings[[#This Row],[Round]]),COUNTIFS(A:A,Round_Ratings[[#This Row],[Tournament]],D:D,Round_Ratings[[#This Row],[Tournament End Date]]))","v":3},"No"]
["37th Annual Wintertime Open - PRO","B","14-Feb to 15-Feb-2015","2015-02-15",{"$f":"YEAR(Round_Ratings[[#This Row],[Tournament End Date]])","v":2015},{"$f":"MONTH(Round_Ratings[[#This Row],[Tournament End Date]])","v":2},"mps","2",80,817,"No",{"$f":"INDEX('Table 0 (2)'!D:D,MATCH(Round_Ratings[[#This Row],[Tournament End Date]],'Table 0 (2)'!A:A,1),1)","v":840},{"$f":"Round_Ratings[[#This Row],[Rating]]-Round_Ratings[[#This Row],[Player Rating at time of round]]","v":-23},{"$f":"IF(ISERROR(_xlfn.NUMBERVALUE(Round_Ratings[[#This Row],[Round]]))=FALSE,_xlfn.NUMBERVALUE(Round_Ratings[[#This Row],[Round]]),COUNTIFS(A:A,Round_Ratings[[#This Row],[Tournament]],D:D,Round_Ratings[[#This Row],[Tournament End Date]]))","v":2},"No"]
["37th Annual Wintertime Open - PRO","B","14-Feb to 15-Feb-2015","2015-02-15",{"$f":"YEAR(Round_Ratings[[#This Row],[Tournament End Date]])","v":2015},{"$f":"MONTH(Round_Ratings[[#This Row],[Tournament End Date]])","v":2},"mps","1",79,826,"No",{"$f":"INDEX('Table 0 (2)'!D:D,MATCH(Round_Ratings[[#This Row],[Tournament End Date]],'Table 0 (2)'!A:A,1),1)","v":840},{"$f":"Round_Ratings[[#This Row],[Rating]]-Round_Ratings[[#This Row],[Player Rating at time of round]]","v":-14},{"$f":"IF(ISERROR(_xlfn.NUMBERVALUE(Round_Ratings[[#This Row],[Round]]))=FALSE,_xlfn.NUMBERVALUE(Round_Ratings[[#This Row],[Round]]),COUNTIFS(A:A,Round_Ratings[[#This Row],[Tournament]],D:D,Round_Ratings[[#This Row],[Tournament End Date]]))","v":1},"No"]
["36th Annual wintertime Open","B","15-Feb to 16-Feb-2014","2014-02-16",{"$f":"YEAR(Round_Ratings[[#This Row],[Tournament End Date]])","v":2014},{"$f":"MONTH(Round_Ratings[[#This Row],[Tournament End Date]])","v":2},"mps","2",79,824,"No",{"$f":"INDEX('Table 0 (2)'!D:D,MATCH(Round_Ratings[[#This Row],[Tournament End Date]],'Table 0 (2)'!A:A,1),1)","v":853},{"$f":"Round_Ratings[[#This Row],[Rating]]-Round_Ratings[[#This Row],[Player Rating at time of round]]","v":-29},{"$f":"IF(ISERROR(_xlfn.NUMBERVALUE(Round_Ratings[[#This Row],[Round]]))=FALSE,_xlfn.NUMBERVALUE(Round_Ratings[[#This Row],[Round]]),COUNTIFS(A:A,Round_Ratings[[#This Row],[Tournament]],D:D,Round_Ratings[[#This Row],[Tournament End Date]]))","v":2},"No"]
["36th Annual wintertime Open","B","15-Feb to 16-Feb-2014",{"$f":"DATEVALUE(IF(ISERROR(FIND(\"to\",C34,1))=TRUE,C34,RIGHT(C34,LEN(C34)-FIND(\"to\",C34,1)-2)))","v":"2014-02-16"},{"$f":"YEAR(Round_Ratings[[#This Row],[Tournament End Date]])","v":2014},{"$f":"MONTH(Round_Ratings[[#This Row],[Tournament End Date]])","v":2},"mps","1",78,832,"No",{"$f":"INDEX('Table 0 (2)'!D:D,MATCH(Round_Ratings[[#This Row],[Tournament End Date]],'Table 0 (2)'!A:A,1),1)","v":853},{"$f":"Round_Ratings[[#This Row],[Rating]]-Round_Ratings[[#This Row],[Player Rating at time of round]]","v":-21},{"$f":"IF(ISERROR(_xlfn.NUMBERVALUE(Round_Ratings[[#This Row],[Round]]))=FALSE,_xlfn.NUMBERVALUE(Round_Ratings[[#This Row],[Round]]),COUNTIFS(A:A,Round_Ratings[[#This Row],[Tournament]],D:D,Round_Ratings[[#This Row],[Tournament End Date]]))","v":1},"No"]
["2013 PDGA Professional Disc Golf World Championships","M","3-Aug to 10-Aug-2013","2013-08-10",{"$f":"YEAR(Round_Ratings[[#This Row],[Tournament End Date]])","v":2013},{"$f":"MONTH(Round_Ratings[[#This Row],[Tournament End Date]])","v":8},"MPS","6",62,876,"No",{"$f":"INDEX('Table 0 (2)'!D:D,MATCH(Round_Ratings[[#This Row],[Tournament End Date]],'Table 0 (2)'!A:A,1),1)","v":846},{"$f":"Round_Ratings[[#This Row],[Rating]]-Round_Ratings[[#This Row],[Player Rating at time of round]]","v":30},{"$f":"IF(ISERROR(_xlfn.NUMBERVALUE(Round_Ratings[[#This Row],[Round]]))=FALSE,_xlfn.NUMBERVALUE(Round_Ratings[[#This Row],[Round]]),COUNTIFS(A:A,Round_Ratings[[#This Row],[Tournament]],D:D,Round_Ratings[[#This Row],[Tournament End Date]]))","v":6},"No"]
["2013 PDGA Professional Disc Golf World Championships","M","3-Aug to 10-Aug-2013","2013-08-10",{"$f":"YEAR(Round_Ratings[[#This Row],[Tournament End Date]])","v":2013},{"$f":"MONTH(Round_Ratings[[#This Row],[Tournament End Date]])","v":8},"MPS","5",75,786,"No",{"$f":"INDEX('Table 0 (2)'!D:D,MATCH(Round_Ratings[[#This Row],[Tournament End Date]],'Table 0 (2)'!A:A,1),1)","v":846},{"$f":"Round_Ratings[[#This Row],[Rating]]-Round_Ratings[[#This Row],[Player Rating at time of round]]","v":-60},{"$f":"IF(ISERROR(_xlfn.NUMBERVALUE(Round_Ratings[[#This Row],[Round]]))=FALSE,_xlfn.NUMBERVALUE(Round_Ratings[[#This Row],[Round]]),COUNTIFS(A:A,Round_Ratings[[#This Row],[Tournament]],D:D,Round_Ratings[[#This Row],[Tournament End Date]]))","v":5},"No"]
["2013 PDGA Professional Disc Golf World Championships","M","3-Aug to 10-Aug-2013","2013-08-10",{"$f":"YEAR(Round_Ratings[[#This Row],[Tournament End Date]])","v":2013},{"$f":"MONTH(Round_Ratings[[#This Row],[Tournament End Date]])","v":8},"MPS","4",70,834,"No",{"$f":"INDEX('Table 0 (2)'!D:D,MATCH(Round_Ratings[[#This Row],[Tournament End Date]],'Table 0 (2)'!A:A,1),1)","v":846},{"$f":"Round_Ratings[[#This Row],[Rating]]-Round_Ratings[[#This Row],[Player Rating at time of round]]","v":-12},{"$f":"IF(ISERROR(_xlfn.NUMBERVALUE(Round_Ratings[[#This Row],[Round]]))=FALSE,_xlfn.NUMBERVALUE(Round_Ratings[[#This Row],[Round]]),COUNTIFS(A:A,Round_Ratings[[#This Row],[Tournament]],D:D,Round_Ratings[[#This Row],[Tournament End Date]]))","v":4},"No"]
["2013 PDGA Professional Disc Golf World Championships","M","3-Aug to 10-Aug-2013","2013-08-10",{"$f":"YEAR(Round_Ratings[[#This Row],[Tournament End Date]])","v":2013},{"$f":"MONTH(Round_Ratings[[#This Row],[Tournament End Date]])","v":8},"MPS","3",90,775,"No",{"$f":"INDEX('Table 0 (2)'!D:D,MATCH(Round_Ratings[[#This Row],[Tournament End Date]],'Table 0 (2)'!A:A,1),1)","v":846},{"$f":"Round_Ratings[[#This Row],[Rating]]-Round_Ratings[[#This Row],[Player Rating at time of round]]","v":-71},{"$f":"IF(ISERROR(_xlfn.NUMBERVALUE(Round_Ratings[[#This Row],[Round]]))=FALSE,_xlfn.NUMBERVALUE(Round_Ratings[[#This Row],[Round]]),COUNTIFS(A:A,Round_Ratings[[#This Row],[Tournament]],D:D,Round_Ratings[[#This Row],[Tournament End Date]]))","v":3},"No"]
["2013 PDGA Professional Disc Golf World Championships","M","3-Aug to 10-Aug-2013","2013-08-10",{"$f":"YEAR(Round_Ratings[[#This Row],[Tournament End Date]])","v":2013},{"$f":"MONTH(Round_Ratings[[#This Row],[Tournament End Date]])","v":8},"MPS","2",76,733,"No",{"$f":"INDEX('Table 0 (2)'!D:D,MATCH(Round_Ratings[[#This Row],[Tournament End Date]],'Table 0 (2)'!A:A,1),1)","v":846},{"$f":"Round_Ratings[[#This Row],[Rating]]-Round_Ratings[[#This Row],[Player Rating at time of round]]","v":-113},{"$f":"IF(ISERROR(_xlfn.NUMBERVALUE(Round_Ratings[[#This Row],[Round]]))=FALSE,_xlfn.NUMBERVALUE(Round_Ratings[[#This Row],[Round]]),COUNTIFS(A:A,Round_Ratings[[#This Row],[Tournament]],D:D,Round_Ratings[[#This Row],[Tournament End Date]]))","v":2},"No"]
["2013 PDGA Professional Disc Golf World Championships","M","3-Aug to 10-Aug-2013","2013-08-10",{"$f":"YEAR(Round_Ratings[[#This Row],[Tournament End Date]])","v":2013},{"$f":"MONTH(Round_Ratings[[#This Row],[Tournament End Date]])","v":8},"MPS","1",65,895,"No",{"$f":"INDEX('Table 0 (2)'!D:D,MATCH(Round_Ratings[[#This Row],[Tournament End Date]],'Table 0 (2)'!A:A,1),1)","v":846},{"$f":"Round_Ratings[[#This Row],[Rating]]-Round_Ratings[[#This Row],[Player Rating at time of round]]","v":49},{"$f":"IF(ISERROR(_xlfn.NUMBERVALUE(Round_Ratings[[#This Row],[Round]]))=FALSE,_xlfn.NUMBERVALUE(Round_Ratings[[#This Row],[Round]]),COUNTIFS(A:A,Round_Ratings[[#This Row],[Tournament]],D:D,Round_Ratings[[#This Row],[Tournament End Date]]))","v":1},"No"]
["35th Annual Wintertime Open - Pro","B","16-Feb to 17-Feb-2013","2013-02-17",{"$f":"YEAR(Round_Ratings[[#This Row],[Tournament End Date]])","v":2013},{"$f":"MONTH(Round_Ratings[[#This Row],[Tournament End Date]])","v":2},"MPS","3",70,910,"No",{"$f":"INDEX('Table 0 (2)'!D:D,MATCH(Round_Ratings[[#This Row],[Tournament End Date]],'Table 0 (2)'!A:A,1),1)","v":838},{"$f":"Round_Ratings[[#This Row],[Rating]]-Round_Ratings[[#This Row],[Player Rating at time of round]]","v":72},{"$f":"IF(ISERROR(_xlfn.NUMBERVALUE(Round_Ratings[[#This Row],[Round]]))=FALSE,_xlfn.NUMBERVALUE(Round_Ratings[[#This Row],[Round]]),COUNTIFS(A:A,Round_Ratings[[#This Row],[Tournament]],D:D,Round_Ratings[[#This Row],[Tournament End Date]]))","v":3},"No"]
["35th Annual Wintertime Open - Pro","B","16-Feb to 17-Feb-2013","2013-02-17",{"$f":"YEAR(Round_Ratings[[#This Row],[Tournament End Date]])","v":2013},{"$f":"MONTH(Round_Ratings[[#This Row],[Tournament End Date]])","v":2},"MPS","2",83,805,"No",{"$f":"INDEX('Table 0 (2)'!D:D,MATCH(Round_Ratings[[#This Row],[Tournament End Date]],'Table 0 (2)'!A:A,1),1)","v":838},{"$f":"Round_Ratings[[#This Row],[Rating]]-Round_Ratings[[#This Row],[Player Rating at time of round]]","v":-33},{"$f":"IF(ISERROR(_xlfn.NUMBERVALUE(Round_Ratings[[#This Row],[Round]]))=FALSE,_xlfn.NUMBERVALUE(Round_Ratings[[#This Row],[Round]]),COUNTIFS(A:A,Round_Ratings[[#This Row],[Tournament]],D:D,Round_Ratings[[#This Row],[Tournament End Date]]))","v":2},"No"]
["35th Annual Wintertime Open - Pro","B","16-Feb to 17-Feb-2013","2013-02-17",{"$f":"YEAR(Round_Ratings[[#This Row],[Tournament End Date]])","v":2013},{"$f":"MONTH(Round_Ratings[[#This Row],[Tournament End Date]])","v":2},"MPS","1",73,886,"No",{"$f":"INDEX('Table 0 (2)'!D:D,MATCH(Round_Ratings[[#This Row],[Tournament End Date]],'Table 0 (2)'!A:A,1),1)","v":838},{"$f":"Round_Ratings[[#This Row],[Rating]]-Round_Ratings[[#This Row],[Player Rating at time of round]]","v":48},{"$f":"IF(ISERROR(_xlfn.NUMBERVALUE(Round_Ratings[[#This Row],[Round]]))=FALSE,_xlfn.NUMBERVALUE(Round_Ratings[[#This Row],[Round]]),COUNTIFS(A:A,Round_Ratings[[#This Row],[Tournament]],D:D,Round_Ratings[[#This Row],[Tournament End Date]]))","v":1},"No"]
["2012 US Open Overall Flying Disc Championships","C","25-Jun to 30-Jun-2012","2012-06-30",{"$f":"YEAR(Round_Ratings[[#This Row],[Tournament End Date]])","v":2012},{"$f":"MONTH(Round_Ratings[[#This Row],[Tournament End Date]])","v":6},"MPO","2",65,837,"No",{"$f":"INDEX('Table 0 (2)'!D:D,MATCH(Round_Ratings[[#This Row],[Tournament End Date]],'Table 0 (2)'!A:A,1),1)","v":842},{"$f":"Round_Ratings[[#This Row],[Rating]]-Round_Ratings[[#This Row],[Player Rating at time of round]]","v":-5},{"$f":"IF(ISERROR(_xlfn.NUMBERVALUE(Round_Ratings[[#This Row],[Round]]))=FALSE,_xlfn.NUMBERVALUE(Round_Ratings[[#This Row],[Round]]),COUNTIFS(A:A,Round_Ratings[[#This Row],[Tournament]],D:D,Round_Ratings[[#This Row],[Tournament End Date]]))","v":2},"No"]
["2012 US Open Overall Flying Disc Championships","C","25-Jun to 30-Jun-2012","2012-06-30",{"$f":"YEAR(Round_Ratings[[#This Row],[Tournament End Date]])","v":2012},{"$f":"MONTH(Round_Ratings[[#This Row],[Tournament End Date]])","v":6},"MPO","1",67,816,"No",{"$f":"INDEX('Table 0 (2)'!D:D,MATCH(Round_Ratings[[#This Row],[Tournament End Date]],'Table 0 (2)'!A:A,1),1)","v":842},{"$f":"Round_Ratings[[#This Row],[Rating]]-Round_Ratings[[#This Row],[Player Rating at time of round]]","v":-26},{"$f":"IF(ISERROR(_xlfn.NUMBERVALUE(Round_Ratings[[#This Row],[Round]]))=FALSE,_xlfn.NUMBERVALUE(Round_Ratings[[#This Row],[Round]]),COUNTIFS(A:A,Round_Ratings[[#This Row],[Tournament]],D:D,Round_Ratings[[#This Row],[Tournament End Date]]))","v":1},"No"]
["34th annual Wintertime Open - Pro","B","18-Feb to 19-Feb-2012","2012-02-19",{"$f":"YEAR(Round_Ratings[[#This Row],[Tournament End Date]])","v":2012},{"$f":"MONTH(Round_Ratings[[#This Row],[Tournament End Date]])","v":2},"MPS","3",80,826,"No",{"$f":"INDEX('Table 0 (2)'!D:D,MATCH(Round_Ratings[[#This Row],[Tournament End Date]],'Table 0 (2)'!A:A,1),1)","v":844},{"$f":"Round_Ratings[[#This Row],[Rating]]-Round_Ratings[[#This Row],[Player Rating at time of round]]","v":-18},{"$f":"IF(ISERROR(_xlfn.NUMBERVALUE(Round_Ratings[[#This Row],[Round]]))=FALSE,_xlfn.NUMBERVALUE(Round_Ratings[[#This Row],[Round]]),COUNTIFS(A:A,Round_Ratings[[#This Row],[Tournament]],D:D,Round_Ratings[[#This Row],[Tournament End Date]]))","v":3},"No"]
["34th annual Wintertime Open - Pro","B","18-Feb to 19-Feb-2012","2012-02-19",{"$f":"YEAR(Round_Ratings[[#This Row],[Tournament End Date]])","v":2012},{"$f":"MONTH(Round_Ratings[[#This Row],[Tournament End Date]])","v":2},"MPS","2",80,826,"No",{"$f":"INDEX('Table 0 (2)'!D:D,MATCH(Round_Ratings[[#This Row],[Tournament End Date]],'Table 0 (2)'!A:A,1),1)","v":844},{"$f":"Round_Ratings[[#This Row],[Rating]]-Round_Ratings[[#This Row],[Player Rating at time of round]]","v":-18},{"$f":"IF(ISERROR(_xlfn.NUMBERVALUE(Round_Ratings[[#This Row],[Round]]))=FALSE,_xlfn.NUMBERVALUE(Round_Ratings[[#This Row],[Round]]),COUNTIFS(A:A,Round_Ratings[[#This Row],[Tournament]],D:D,Round_Ratings[[#This Row],[Tournament End Date]]))","v":2},"No"]
["34th annual Wintertime Open - Pro","B","18-Feb to 19-Feb-2012","2012-02-19",{"$f":"YEAR(Round_Ratings[[#This Row],[Tournament End Date]])","v":2012},{"$f":"MONTH(Round_Ratings[[#This Row],[Tournament End Date]])","v":2},"MPS","1",76,858,"No",{"$f":"INDEX('Table 0 (2)'!D:D,MATCH(Round_Ratings[[#This Row],[Tournament End Date]],'Table 0 (2)'!A:A,1),1)","v":844},{"$f":"Round_Ratings[[#This Row],[Rating]]-Round_Ratings[[#This Row],[Player Rating at time of round]]","v":14},{"$f":"IF(ISERROR(_xlfn.NUMBERVALUE(Round_Ratings[[#This Row],[Round]]))=FALSE,_xlfn.NUMBERVALUE(Round_Ratings[[#This Row],[Round]]),COUNTIFS(A:A,Round_Ratings[[#This Row],[Tournament]],D:D,Round_Ratings[[#This Row],[Tournament End Date]]))","v":1},"No"]
["WFDF World Overall Flying Disc Championships","C","20-Jul-2011","2011-07-20",{"$f":"YEAR(Round_Ratings[[#This Row],[Tournament End Date]])","v":2011},{"$f":"MONTH(Round_Ratings[[#This Row],[Tournament End Date]])","v":7},"MPO","1",81,805,"No",{"$f":"INDEX('Table 0 (2)'!D:D,MATCH(Round_Ratings[[#This Row],[Tournament End Date]],'Table 0 (2)'!A:A,1),1)","v":852},{"$f":"Round_Ratings[[#This Row],[Rating]]-Round_Ratings[[#This Row],[Player Rating at time of round]]","v":-47},{"$f":"IF(ISERROR(_xlfn.NUMBERVALUE(Round_Ratings[[#This Row],[Round]]))=FALSE,_xlfn.NUMBERVALUE(Round_Ratings[[#This Row],[Round]]),COUNTIFS(A:A,Round_Ratings[[#This Row],[Tournament]],D:D,Round_Ratings[[#This Row],[Tournament End Date]]))","v":1},"No"]
["33rd Annual Wintertime Open","B","19-Feb to 20-Feb-2011","2011-02-20",{"$f":"YEAR(Round_Ratings[[#This Row],[Tournament End Date]])","v":2011},{"$f":"MONTH(Round_Ratings[[#This Row],[Tournament End Date]])","v":2},"MPS","3",78,863,"No",{"$f":"INDEX('Table 0 (2)'!D:D,MATCH(Round_Ratings[[#This Row],[Tournament End Date]],'Table 0 (2)'!A:A,1),1)","v":859},{"$f":"Round_Ratings[[#This Row],[Rating]]-Round_Ratings[[#This Row],[Player Rating at time of round]]","v":4},{"$f":"IF(ISERROR(_xlfn.NUMBERVALUE(Round_Ratings[[#This Row],[Round]]))=FALSE,_xlfn.NUMBERVALUE(Round_Ratings[[#This Row],[Round]]),COUNTIFS(A:A,Round_Ratings[[#This Row],[Tournament]],D:D,Round_Ratings[[#This Row],[Tournament End Date]]))","v":3},"No"]
["33rd Annual Wintertime Open","B","19-Feb to 20-Feb-2011","2011-02-20",{"$f":"YEAR(Round_Ratings[[#This Row],[Tournament End Date]])","v":2011},{"$f":"MONTH(Round_Ratings[[#This Row],[Tournament End Date]])","v":2},"MPS","2",78,863,"No",{"$f":"INDEX('Table 0 (2)'!D:D,MATCH(Round_Ratings[[#This Row],[Tournament End Date]],'Table 0 (2)'!A:A,1),1)","v":859},{"$f":"Round_Ratings[[#This Row],[Rating]]-Round_Ratings[[#This Row],[Player Rating at time of round]]","v":4},{"$f":"IF(ISERROR(_xlfn.NUMBERVALUE(Round_Ratings[[#This Row],[Round]]))=FALSE,_xlfn.NUMBERVALUE(Round_Ratings[[#This Row],[Round]]),COUNTIFS(A:A,Round_Ratings[[#This Row],[Tournament]],D:D,Round_Ratings[[#This Row],[Tournament End Date]]))","v":2},"No"]
["33rd Annual Wintertime Open","B","19-Feb to 20-Feb-2011","2011-02-20",{"$f":"YEAR(Round_Ratings[[#This Row],[Tournament End Date]])","v":2011},{"$f":"MONTH(Round_Ratings[[#This Row],[Tournament End Date]])","v":2},"MPS","1",78,863,"No",{"$f":"INDEX('Table 0 (2)'!D:D,MATCH(Round_Ratings[[#This Row],[Tournament End Date]],'Table 0 (2)'!A:A,1),1)","v":859},{"$f":"Round_Ratings[[#This Row],[Rating]]-Round_Ratings[[#This Row],[Player Rating at time of round]]","v":4},{"$f":"IF(ISERROR(_xlfn.NUMBERVALUE(Round_Ratings[[#This Row],[Round]]))=FALSE,_xlfn.NUMBERVALUE(Round_Ratings[[#This Row],[Round]]),COUNTIFS(A:A,Round_Ratings[[#This Row],[Tournament]],D:D,Round_Ratings[[#This Row],[Tournament End Date]]))","v":1},"No"]
["2010 PDGA Professional Disc Golf World Championships","M","27-Jul to 31-Jul-2010","2010-07-31",{"$f":"YEAR(Round_Ratings[[#This Row],[Tournament End Date]])","v":2010},{"$f":"MONTH(Round_Ratings[[#This Row],[Tournament End Date]])","v":7},"MPS","6",79,871,"No",{"$f":"INDEX('Table 0 (2)'!D:D,MATCH(Round_Ratings[[#This Row],[Tournament End Date]],'Table 0 (2)'!A:A,1),1)","v":875},{"$f":"Round_Ratings[[#This Row],[Rating]]-Round_Ratings[[#This Row],[Player Rating at time of round]]","v":-4},{"$f":"IF(ISERROR(_xlfn.NUMBERVALUE(Round_Ratings[[#This Row],[Round]]))=FALSE,_xlfn.NUMBERVALUE(Round_Ratings[[#This Row],[Round]]),COUNTIFS(A:A,Round_Ratings[[#This Row],[Tournament]],D:D,Round_Ratings[[#This Row],[Tournament End Date]]))","v":6},"No"]
["2010 PDGA Professional Disc Golf World Championships","M","27-Jul to 31-Jul-2010","2010-07-31",{"$f":"YEAR(Round_Ratings[[#This Row],[Tournament End Date]])","v":2010},{"$f":"MONTH(Round_Ratings[[#This Row],[Tournament End Date]])","v":7},"MPS","5",71,824,"No",{"$f":"INDEX('Table 0 (2)'!D:D,MATCH(Round_Ratings[[#This Row],[Tournament End Date]],'Table 0 (2)'!A:A,1),1)","v":875},{"$f":"Round_Ratings[[#This Row],[Rating]]-Round_Ratings[[#This Row],[Player Rating at time of round]]","v":-51},{"$f":"IF(ISERROR(_xlfn.NUMBERVALUE(Round_Ratings[[#This Row],[Round]]))=FALSE,_xlfn.NUMBERVALUE(Round_Ratings[[#This Row],[Round]]),COUNTIFS(A:A,Round_Ratings[[#This Row],[Tournament]],D:D,Round_Ratings[[#This Row],[Tournament End Date]]))","v":5},"No"]
["2010 PDGA Professional Disc Golf World Championships","M","27-Jul to 31-Jul-2010","2010-07-31",{"$f":"YEAR(Round_Ratings[[#This Row],[Tournament End Date]])","v":2010},{"$f":"MONTH(Round_Ratings[[#This Row],[Tournament End Date]])","v":7},"MPS","4",69,819,"No",{"$f":"INDEX('Table 0 (2)'!D:D,MATCH(Round_Ratings[[#This Row],[Tournament End Date]],'Table 0 (2)'!A:A,1),1)","v":875},{"$f":"Round_Ratings[[#This Row],[Rating]]-Round_Ratings[[#This Row],[Player Rating at time of round]]","v":-56},{"$f":"IF(ISERROR(_xlfn.NUMBERVALUE(Round_Ratings[[#This Row],[Round]]))=FALSE,_xlfn.NUMBERVALUE(Round_Ratings[[#This Row],[Round]]),COUNTIFS(A:A,Round_Ratings[[#This Row],[Tournament]],D:D,Round_Ratings[[#This Row],[Tournament End Date]]))","v":4},"No"]
["2010 PDGA Professional Disc Golf World Championships","M","27-Jul to 31-Jul-2010","2010-07-31",{"$f":"YEAR(Round_Ratings[[#This Row],[Tournament End Date]])","v":2010},{"$f":"MONTH(Round_Ratings[[#This Row],[Tournament End Date]])","v":7},"MPS","3",70,812,"No",{"$f":"INDEX('Table 0 (2)'!D:D,MATCH(Round_Ratings[[#This Row],[Tournament End Date]],'Table 0 (2)'!A:A,1),1)","v":875},{"$f":"Round_Ratings[[#This Row],[Rating]]-Round_Ratings[[#This Row],[Player Rating at time of round]]","v":-63},{"$f":"IF(ISERROR(_xlfn.NUMBERVALUE(Round_Ratings[[#This Row],[Round]]))=FALSE,_xlfn.NUMBERVALUE(Round_Ratings[[#This Row],[Round]]),COUNTIFS(A:A,Round_Ratings[[#This Row],[Tournament]],D:D,Round_Ratings[[#This Row],[Tournament End Date]]))","v":3},"No"]
["2010 PDGA Professional Disc Golf World Championships","M","27-Jul to 31-Jul-2010","2010-07-31",{"$f":"YEAR(Round_Ratings[[#This Row],[Tournament End Date]])","v":2010},{"$f":"MONTH(Round_Ratings[[#This Row],[Tournament End Date]])","v":7},"MPS","2",65,859,"No",{"$f":"INDEX('Table 0 (2)'!D:D,MATCH(Round_Ratings[[#This Row],[Tournament End Date]],'Table 0 (2)'!A:A,1),1)","v":875},{"$f":"Round_Ratings[[#This Row],[Rating]]-Round_Ratings[[#This Row],[Player Rating at time of round]]","v":-16},{"$f":"IF(ISERROR(_xlfn.NUMBERVALUE(Round_Ratings[[#This Row],[Round]]))=FALSE,_xlfn.NUMBERVALUE(Round_Ratings[[#This Row],[Round]]),COUNTIFS(A:A,Round_Ratings[[#This Row],[Tournament]],D:D,Round_Ratings[[#This Row],[Tournament End Date]]))","v":2},"No"]
["2010 PDGA Professional Disc Golf World Championships","M","27-Jul to 31-Jul-2010","2010-07-31",{"$f":"YEAR(Round_Ratings[[#This Row],[Tournament End Date]])","v":2010},{"$f":"MONTH(Round_Ratings[[#This Row],[Tournament End Date]])","v":7},"MPS","1",66,872,"No",{"$f":"INDEX('Table 0 (2)'!D:D,MATCH(Round_Ratings[[#This Row],[Tournament End Date]],'Table 0 (2)'!A:A,1),1)","v":875},{"$f":"Round_Ratings[[#This Row],[Rating]]-Round_Ratings[[#This Row],[Player Rating at time of round]]","v":-3},{"$f":"IF(ISERROR(_xlfn.NUMBERVALUE(Round_Ratings[[#This Row],[Round]]))=FALSE,_xlfn.NUMBERVALUE(Round_Ratings[[#This Row],[Round]]),COUNTIFS(A:A,Round_Ratings[[#This Row],[Tournament]],D:D,Round_Ratings[[#This Row],[Tournament End Date]]))","v":1},"No"]
["32nd Wintertime Open","B","13-Feb to 14-Feb-2010","2010-02-14",{"$f":"YEAR(Round_Ratings[[#This Row],[Tournament End Date]])","v":2010},{"$f":"MONTH(Round_Ratings[[#This Row],[Tournament End Date]])","v":2},"MPS","3",69,908,"No",{"$f":"INDEX('Table 0 (2)'!D:D,MATCH(Round_Ratings[[#This Row],[Tournament End Date]],'Table 0 (2)'!A:A,1),1)","v":873},{"$f":"Round_Ratings[[#This Row],[Rating]]-Round_Ratings[[#This Row],[Player Rating at time of round]]","v":35},{"$f":"IF(ISERROR(_xlfn.NUMBERVALUE(Round_Ratings[[#This Row],[Round]]))=FALSE,_xlfn.NUMBERVALUE(Round_Ratings[[#This Row],[Round]]),COUNTIFS(A:A,Round_Ratings[[#This Row],[Tournament]],D:D,Round_Ratings[[#This Row],[Tournament End Date]]))","v":3},"No"]
["32nd Wintertime Open","B","13-Feb to 14-Feb-2010","2010-02-14",{"$f":"YEAR(Round_Ratings[[#This Row],[Tournament End Date]])","v":2010},{"$f":"MONTH(Round_Ratings[[#This Row],[Tournament End Date]])","v":2},"MPS","2",74,872,"No",{"$f":"INDEX('Table 0 (2)'!D:D,MATCH(Round_Ratings[[#This Row],[Tournament End Date]],'Table 0 (2)'!A:A,1),1)","v":873},{"$f":"Round_Ratings[[#This Row],[Rating]]-Round_Ratings[[#This Row],[Player Rating at time of round]]","v":-1},{"$f":"IF(ISERROR(_xlfn.NUMBERVALUE(Round_Ratings[[#This Row],[Round]]))=FALSE,_xlfn.NUMBERVALUE(Round_Ratings[[#This Row],[Round]]),COUNTIFS(A:A,Round_Ratings[[#This Row],[Tournament]],D:D,Round_Ratings[[#This Row],[Tournament End Date]]))","v":2},"No"]
["32nd Wintertime Open","B","13-Feb to 14-Feb-2010","2010-02-14",{"$f":"YEAR(Round_Ratings[[#This Row],[Tournament End Date]])","v":2010},{"$f":"MONTH(Round_Ratings[[#This Row],[Tournament End Date]])","v":2},"MPS","1",78,840,"No",{"$f":"INDEX('Table 0 (2)'!D:D,MATCH(Round_Ratings[[#This Row],[Tournament End Date]],'Table 0 (2)'!A:A,1),1)","v":873},{"$f":"Round_Ratings[[#This Row],[Rating]]-Round_Ratings[[#This Row],[Player Rating at time of round]]","v":-33},{"$f":"IF(ISERROR(_xlfn.NUMBERVALUE(Round_Ratings[[#This Row],[Round]]))=FALSE,_xlfn.NUMBERVALUE(Round_Ratings[[#This Row],[Round]]),COUNTIFS(A:A,Round_Ratings[[#This Row],[Tournament]],D:D,Round_Ratings[[#This Row],[Tournament End Date]]))","v":1},"No"]
["Ice Bowl In Paradise","C","23-Jan-2010","2010-01-23",{"$f":"YEAR(Round_Ratings[[#This Row],[Tournament End Date]])","v":2010},{"$f":"MONTH(Round_Ratings[[#This Row],[Tournament End Date]])","v":1},"MPS","2",65,886,"No",{"$f":"INDEX('Table 0 (2)'!D:D,MATCH(Round_Ratings[[#This Row],[Tournament End Date]],'Table 0 (2)'!A:A,1),1)","v":873},{"$f":"Round_Ratings[[#This Row],[Rating]]-Round_Ratings[[#This Row],[Player Rating at time of round]]","v":13},{"$f":"IF(ISERROR(_xlfn.NUMBERVALUE(Round_Ratings[[#This Row],[Round]]))=FALSE,_xlfn.NUMBERVALUE(Round_Ratings[[#This Row],[Round]]),COUNTIFS(A:A,Round_Ratings[[#This Row],[Tournament]],D:D,Round_Ratings[[#This Row],[Tournament End Date]]))","v":2},"No"]
["Ice Bowl In Paradise","C","23-Jan-2010","2010-01-23",{"$f":"YEAR(Round_Ratings[[#This Row],[Tournament End Date]])","v":2010},{"$f":"MONTH(Round_Ratings[[#This Row],[Tournament End Date]])","v":1},"MPS","1",71,848,"No",{"$f":"INDEX('Table 0 (2)'!D:D,MATCH(Round_Ratings[[#This Row],[Tournament End Date]],'Table 0 (2)'!A:A,1),1)","v":873},{"$f":"Round_Ratings[[#This Row],[Rating]]-Round_Ratings[[#This Row],[Player Rating at time of round]]","v":-25},{"$f":"IF(ISERROR(_xlfn.NUMBERVALUE(Round_Ratings[[#This Row],[Round]]))=FALSE,_xlfn.NUMBERVALUE(Round_Ratings[[#This Row],[Round]]),COUNTIFS(A:A,Round_Ratings[[#This Row],[Tournament]],D:D,Round_Ratings[[#This Row],[Tournament End Date]]))","v":1},"No"]
["Fling XIII","C","16-May-2009","2009-05-16",{"$f":"YEAR(Round_Ratings[[#This Row],[Tournament End Date]])","v":2009},{"$f":"MONTH(Round_Ratings[[#This Row],[Tournament End Date]])","v":5},"MPS","2",71,846,"No",{"$f":"INDEX('Table 0 (2)'!D:D,MATCH(Round_Ratings[[#This Row],[Tournament End Date]],'Table 0 (2)'!A:A,1),1)","v":881},{"$f":"Round_Ratings[[#This Row],[Rating]]-Round_Ratings[[#This Row],[Player Rating at time of round]]","v":-35},{"$f":"IF(ISERROR(_xlfn.NUMBERVALUE(Round_Ratings[[#This Row],[Round]]))=FALSE,_xlfn.NUMBERVALUE(Round_Ratings[[#This Row],[Round]]),COUNTIFS(A:A,Round_Ratings[[#This Row],[Tournament]],D:D,Round_Ratings[[#This Row],[Tournament End Date]]))","v":2},"No"]
["Fling XIII","C","16-May-2009","2009-05-16",{"$f":"YEAR(Round_Ratings[[#This Row],[Tournament End Date]])","v":2009},{"$f":"MONTH(Round_Ratings[[#This Row],[Tournament End Date]])","v":5},"MPS","1",64,900,"No",{"$f":"INDEX('Table 0 (2)'!D:D,MATCH(Round_Ratings[[#This Row],[Tournament End Date]],'Table 0 (2)'!A:A,1),1)","v":881},{"$f":"Round_Ratings[[#This Row],[Rating]]-Round_Ratings[[#This Row],[Player Rating at time of round]]","v":19},{"$f":"IF(ISERROR(_xlfn.NUMBERVALUE(Round_Ratings[[#This Row],[Round]]))=FALSE,_xlfn.NUMBERVALUE(Round_Ratings[[#This Row],[Round]]),COUNTIFS(A:A,Round_Ratings[[#This Row],[Tournament]],D:D,Round_Ratings[[#This Row],[Tournament End Date]]))","v":1},"No"]
["31st Wintertime Open","B","14-Feb to 15-Feb-2009",{"$f":"DATEVALUE(IF(ISERROR(FIND(\"to\",C66,1))=TRUE,C66,RIGHT(C66,LEN(C66)-FIND(\"to\",C66,1)-2)))","v":"2009-02-15"},{"$f":"YEAR(Round_Ratings[[#This Row],[Tournament End Date]])","v":2009},{"$f":"MONTH(Round_Ratings[[#This Row],[Tournament End Date]])","v":2},"MPS","3",69,911,"No",{"$f":"INDEX('Table 0 (2)'!D:D,MATCH(Round_Ratings[[#This Row],[Tournament End Date]],'Table 0 (2)'!A:A,1),1)","v":882},{"$f":"Round_Ratings[[#This Row],[Rating]]-Round_Ratings[[#This Row],[Player Rating at time of round]]","v":29},{"$f":"IF(ISERROR(_xlfn.NUMBERVALUE(Round_Ratings[[#This Row],[Round]]))=FALSE,_xlfn.NUMBERVALUE(Round_Ratings[[#This Row],[Round]]),COUNTIFS(A:A,Round_Ratings[[#This Row],[Tournament]],D:D,Round_Ratings[[#This Row],[Tournament End Date]]))","v":3},"No"]
["31st Wintertime Open","B","14-Feb to 15-Feb-2009","2009-02-15",{"$f":"YEAR(Round_Ratings[[#This Row],[Tournament End Date]])","v":2009},{"$f":"MONTH(Round_Ratings[[#This Row],[Tournament End Date]])","v":2},"MPS","2",76,864,"No",{"$f":"INDEX('Table 0 (2)'!D:D,MATCH(Round_Ratings[[#This Row],[Tournament End Date]],'Table 0 (2)'!A:A,1),1)","v":882},{"$f":"Round_Ratings[[#This Row],[Rating]]-Round_Ratings[[#This Row],[Player Rating at time of round]]","v":-18},{"$f":"IF(ISERROR(_xlfn.NUMBERVALUE(Round_Ratings[[#This Row],[Round]]))=FALSE,_xlfn.NUMBERVALUE(Round_Ratings[[#This Row],[Round]]),COUNTIFS(A:A,Round_Ratings[[#This Row],[Tournament]],D:D,Round_Ratings[[#This Row],[Tournament End Date]]))","v":2},"No"]
["31st Wintertime Open","B","14-Feb to 15-Feb-2009","2009-02-15",{"$f":"YEAR(Round_Ratings[[#This Row],[Tournament End Date]])","v":2009},{"$f":"MONTH(Round_Ratings[[#This Row],[Tournament End Date]])","v":2},"MPS","1",79,844,"No",{"$f":"INDEX('Table 0 (2)'!D:D,MATCH(Round_Ratings[[#This Row],[Tournament End Date]],'Table 0 (2)'!A:A,1),1)","v":882},{"$f":"Round_Ratings[[#This Row],[Rating]]-Round_Ratings[[#This Row],[Player Rating at time of round]]","v":-38},{"$f":"IF(ISERROR(_xlfn.NUMBERVALUE(Round_Ratings[[#This Row],[Round]]))=FALSE,_xlfn.NUMBERVALUE(Round_Ratings[[#This Row],[Round]]),COUNTIFS(A:A,Round_Ratings[[#This Row],[Tournament]],D:D,Round_Ratings[[#This Row],[Tournament End Date]]))","v":1},"No"]
["US Open Flying Disc Championships","XC","14-Jul to 19-Jul-2008","2008-07-19",{"$f":"YEAR(Round_Ratings[[#This Row],[Tournament End Date]])","v":2008},{"$f":"MONTH(Round_Ratings[[#This Row],[Tournament End Date]])","v":7},"MPS","3",66,884,"No",{"$f":"INDEX('Table 0 (2)'!D:D,MATCH(Round_Ratings[[#This Row],[Tournament End Date]],'Table 0 (2)'!A:A,1),1)","v":902},{"$f":"Round_Ratings[[#This Row],[Rating]]-Round_Ratings[[#This Row],[Player Rating at time of round]]","v":-18},{"$f":"IF(ISERROR(_xlfn.NUMBERVALUE(Round_Ratings[[#This Row],[Round]]))=FALSE,_xlfn.NUMBERVALUE(Round_Ratings[[#This Row],[Round]]),COUNTIFS(A:A,Round_Ratings[[#This Row],[Tournament]],D:D,Round_Ratings[[#This Row],[Tournament End Date]]))","v":3},"No"]
["US Open Flying Disc Championships","XC","14-Jul to 19-Jul-2008","2008-07-19",{"$f":"YEAR(Round_Ratings[[#This Row],[Tournament End Date]])","v":2008},{"$f":"MONTH(Round_Ratings[[#This Row],[Tournament End Date]])","v":7},"MPS","2",69,856,"No",{"$f":"INDEX('Table 0 (2)'!D:D,MATCH(Round_Ratings[[#This Row],[Tournament End Date]],'Table 0 (2)'!A:A,1),1)","v":902},{"$f":"Round_Ratings[[#This Row],[Rating]]-Round_Ratings[[#This Row],[Player Rating at time of round]]","v":-46},{"$f":"IF(ISERROR(_xlfn.NUMBERVALUE(Round_Ratings[[#This Row],[Round]]))=FALSE,_xlfn.NUMBERVALUE(Round_Ratings[[#This Row],[Round]]),COUNTIFS(A:A,Round_Ratings[[#This Row],[Tournament]],D:D,Round_Ratings[[#This Row],[Tournament End Date]]))","v":2},"No"]
["US Open Flying Disc Championships","XC","14-Jul to 19-Jul-2008","2008-07-19",{"$f":"YEAR(Round_Ratings[[#This Row],[Tournament End Date]])","v":2008},{"$f":"MONTH(Round_Ratings[[#This Row],[Tournament End Date]])","v":7},"MPS","1",69,856,"No",{"$f":"INDEX('Table 0 (2)'!D:D,MATCH(Round_Ratings[[#This Row],[Tournament End Date]],'Table 0 (2)'!A:A,1),1)","v":902},{"$f":"Round_Ratings[[#This Row],[Rating]]-Round_Ratings[[#This Row],[Player Rating at time of round]]","v":-46},{"$f":"IF(ISERROR(_xlfn.NUMBERVALUE(Round_Ratings[[#This Row],[Round]]))=FALSE,_xlfn.NUMBERVALUE(Round_Ratings[[#This Row],[Round]]),COUNTIFS(A:A,Round_Ratings[[#This Row],[Tournament]],D:D,Round_Ratings[[#This Row],[Tournament End Date]]))","v":1},"No"]
["Fling XII","C","17-May-2008","2008-05-17",{"$f":"YEAR(Round_Ratings[[#This Row],[Tournament End Date]])","v":2008},{"$f":"MONTH(Round_Ratings[[#This Row],[Tournament End Date]])","v":5},"MPS","2",68,845,"No",{"$f":"INDEX('Table 0 (2)'!D:D,MATCH(Round_Ratings[[#This Row],[Tournament End Date]],'Table 0 (2)'!A:A,1),1)","v":911},{"$f":"Round_Ratings[[#This Row],[Rating]]-Round_Ratings[[#This Row],[Player Rating at time of round]]","v":-66},{"$f":"IF(ISERROR(_xlfn.NUMBERVALUE(Round_Ratings[[#This Row],[Round]]))=FALSE,_xlfn.NUMBERVALUE(Round_Ratings[[#This Row],[Round]]),COUNTIFS(A:A,Round_Ratings[[#This Row],[Tournament]],D:D,Round_Ratings[[#This Row],[Tournament End Date]]))","v":2},"No"]
["Fling XII","C","17-May-2008","2008-05-17",{"$f":"YEAR(Round_Ratings[[#This Row],[Tournament End Date]])","v":2008},{"$f":"MONTH(Round_Ratings[[#This Row],[Tournament End Date]])","v":5},"MPS","1",61,915,"No",{"$f":"INDEX('Table 0 (2)'!D:D,MATCH(Round_Ratings[[#This Row],[Tournament End Date]],'Table 0 (2)'!A:A,1),1)","v":911},{"$f":"Round_Ratings[[#This Row],[Rating]]-Round_Ratings[[#This Row],[Player Rating at time of round]]","v":4},{"$f":"IF(ISERROR(_xlfn.NUMBERVALUE(Round_Ratings[[#This Row],[Round]]))=FALSE,_xlfn.NUMBERVALUE(Round_Ratings[[#This Row],[Round]]),COUNTIFS(A:A,Round_Ratings[[#This Row],[Tournament]],D:D,Round_Ratings[[#This Row],[Tournament End Date]]))","v":1},"No"]
["30th Wintertime Open","B","16-Feb to 17-Feb-2008","2008-02-17",{"$f":"YEAR(Round_Ratings[[#This Row],[Tournament End Date]])","v":2008},{"$f":"MONTH(Round_Ratings[[#This Row],[Tournament End Date]])","v":2},"MPS","3",68,916,"No",{"$f":"INDEX('Table 0 (2)'!D:D,MATCH(Round_Ratings[[#This Row],[Tournament End Date]],'Table 0 (2)'!A:A,1),1)","v":898},{"$f":"Round_Ratings[[#This Row],[Rating]]-Round_Ratings[[#This Row],[Player Rating at time of round]]","v":18},{"$f":"IF(ISERROR(_xlfn.NUMBERVALUE(Round_Ratings[[#This Row],[Round]]))=FALSE,_xlfn.NUMBERVALUE(Round_Ratings[[#This Row],[Round]]),COUNTIFS(A:A,Round_Ratings[[#This Row],[Tournament]],D:D,Round_Ratings[[#This Row],[Tournament End Date]]))","v":3},"No"]
["30th Wintertime Open","B","16-Feb to 17-Feb-2008","2008-02-17",{"$f":"YEAR(Round_Ratings[[#This Row],[Tournament End Date]])","v":2008},{"$f":"MONTH(Round_Ratings[[#This Row],[Tournament End Date]])","v":2},"MPS","2",73,876,"No",{"$f":"INDEX('Table 0 (2)'!D:D,MATCH(Round_Ratings[[#This Row],[Tournament End Date]],'Table 0 (2)'!A:A,1),1)","v":898},{"$f":"Round_Ratings[[#This Row],[Rating]]-Round_Ratings[[#This Row],[Player Rating at time of round]]","v":-22},{"$f":"IF(ISERROR(_xlfn.NUMBERVALUE(Round_Ratings[[#This Row],[Round]]))=FALSE,_xlfn.NUMBERVALUE(Round_Ratings[[#This Row],[Round]]),COUNTIFS(A:A,Round_Ratings[[#This Row],[Tournament]],D:D,Round_Ratings[[#This Row],[Tournament End Date]]))","v":2},"No"]
["30th Wintertime Open","B","16-Feb to 17-Feb-2008","2008-02-17",{"$f":"YEAR(Round_Ratings[[#This Row],[Tournament End Date]])","v":2008},{"$f":"MONTH(Round_Ratings[[#This Row],[Tournament End Date]])","v":2},"MPS","1",70,909,"No",{"$f":"INDEX('Table 0 (2)'!D:D,MATCH(Round_Ratings[[#This Row],[Tournament End Date]],'Table 0 (2)'!A:A,1),1)","v":898},{"$f":"Round_Ratings[[#This Row],[Rating]]-Round_Ratings[[#This Row],[Player Rating at time of round]]","v":11},{"$f":"IF(ISERROR(_xlfn.NUMBERVALUE(Round_Ratings[[#This Row],[Round]]))=FALSE,_xlfn.NUMBERVALUE(Round_Ratings[[#This Row],[Round]]),COUNTIFS(A:A,Round_Ratings[[#This Row],[Tournament]],D:D,Round_Ratings[[#This Row],[Tournament End Date]]))","v":1},"No"]
["Kiss The Sky","XB","21-Jul to 23-Jul-2006","2006-07-23",{"$f":"YEAR(Round_Ratings[[#This Row],[Tournament End Date]])","v":2006},{"$f":"MONTH(Round_Ratings[[#This Row],[Tournament End Date]])","v":7},"MPM","2",87,818,"No",{"$f":"INDEX('Table 0 (2)'!D:D,MATCH(Round_Ratings[[#This Row],[Tournament End Date]],'Table 0 (2)'!A:A,1),1)","v":887},{"$f":"Round_Ratings[[#This Row],[Rating]]-Round_Ratings[[#This Row],[Player Rating at time of round]]","v":-69},{"$f":"IF(ISERROR(_xlfn.NUMBERVALUE(Round_Ratings[[#This Row],[Round]]))=FALSE,_xlfn.NUMBERVALUE(Round_Ratings[[#This Row],[Round]]),COUNTIFS(A:A,Round_Ratings[[#This Row],[Tournament]],D:D,Round_Ratings[[#This Row],[Tournament End Date]]))","v":2},"No"]
["Kiss The Sky","XB","21-Jul to 23-Jul-2006","2006-07-23",{"$f":"YEAR(Round_Ratings[[#This Row],[Tournament End Date]])","v":2006},{"$f":"MONTH(Round_Ratings[[#This Row],[Tournament End Date]])","v":7},"MPM","1",87,851,"No",{"$f":"INDEX('Table 0 (2)'!D:D,MATCH(Round_Ratings[[#This Row],[Tournament End Date]],'Table 0 (2)'!A:A,1),1)","v":887},{"$f":"Round_Ratings[[#This Row],[Rating]]-Round_Ratings[[#This Row],[Player Rating at time of round]]","v":-36},{"$f":"IF(ISERROR(_xlfn.NUMBERVALUE(Round_Ratings[[#This Row],[Round]]))=FALSE,_xlfn.NUMBERVALUE(Round_Ratings[[#This Row],[Round]]),COUNTIFS(A:A,Round_Ratings[[#This Row],[Tournament]],D:D,Round_Ratings[[#This Row],[Tournament End Date]]))","v":1},"No"]
["Fling X","C","3-Jun-2006","2006-06-03",{"$f":"YEAR(Round_Ratings[[#This Row],[Tournament End Date]])","v":2006},{"$f":"MONTH(Round_Ratings[[#This Row],[Tournament End Date]])","v":6},"MPG","1",65,896,"No",{"$f":"INDEX('Table 0 (2)'!D:D,MATCH(Round_Ratings[[#This Row],[Tournament End Date]],'Table 0 (2)'!A:A,1),1)","v":886},{"$f":"Round_Ratings[[#This Row],[Rating]]-Round_Ratings[[#This Row],[Player Rating at time of round]]","v":10},{"$f":"IF(ISERROR(_xlfn.NUMBERVALUE(Round_Ratings[[#This Row],[Round]]))=FALSE,_xlfn.NUMBERVALUE(Round_Ratings[[#This Row],[Round]]),COUNTIFS(A:A,Round_Ratings[[#This Row],[Tournament]],D:D,Round_Ratings[[#This Row],[Tournament End Date]]))","v":1},"No"]
["28th Wintertime Open","B","18-Feb to 19-Feb-2006","2006-02-19",{"$f":"YEAR(Round_Ratings[[#This Row],[Tournament End Date]])","v":2006},{"$f":"MONTH(Round_Ratings[[#This Row],[Tournament End Date]])","v":2},"MPG","3",82,838,"No",{"$f":"INDEX('Table 0 (2)'!D:D,MATCH(Round_Ratings[[#This Row],[Tournament End Date]],'Table 0 (2)'!A:A,1),1)","v":882},{"$f":"Round_Ratings[[#This Row],[Rating]]-Round_Ratings[[#This Row],[Player Rating at time of round]]","v":-44},{"$f":"IF(ISERROR(_xlfn.NUMBERVALUE(Round_Ratings[[#This Row],[Round]]))=FALSE,_xlfn.NUMBERVALUE(Round_Ratings[[#This Row],[Round]]),COUNTIFS(A:A,Round_Ratings[[#This Row],[Tournament]],D:D,Round_Ratings[[#This Row],[Tournament End Date]]))","v":3},"No"]
["28th Wintertime Open","B","18-Feb to 19-Feb-2006","2006-02-19",{"$f":"YEAR(Round_Ratings[[#This Row],[Tournament End Date]])","v":2006},{"$f":"MONTH(Round_Ratings[[#This Row],[Tournament End Date]])","v":2},"MPG","2",64,879,"No",{"$f":"INDEX('Table 0 (2)'!D:D,MATCH(Round_Ratings[[#This Row],[Tournament End Date]],'Table 0 (2)'!A:A,1),1)","v":882},{"$f":"Round_Ratings[[#This Row],[Rating]]-Round_Ratings[[#This Row],[Player Rating at time of round]]","v":-3},{"$f":"IF(ISERROR(_xlfn.NUMBERVALUE(Round_Ratings[[#This Row],[Round]]))=FALSE,_xlfn.NUMBERVALUE(Round_Ratings[[#This Row],[Round]]),COUNTIFS(A:A,Round_Ratings[[#This Row],[Tournament]],D:D,Round_Ratings[[#This Row],[Tournament End Date]]))","v":2},"No"]
["28th Wintertime Open","B","18-Feb to 19-Feb-2006","2006-02-19",{"$f":"YEAR(Round_Ratings[[#This Row],[Tournament End Date]])","v":2006},{"$f":"MONTH(Round_Ratings[[#This Row],[Tournament End Date]])","v":2},"MPG","1",58,909,"No",{"$f":"INDEX('Table 0 (2)'!D:D,MATCH(Round_Ratings[[#This Row],[Tournament End Date]],'Table 0 (2)'!A:A,1),1)","v":882},{"$f":"Round_Ratings[[#This Row],[Rating]]-Round_Ratings[[#This Row],[Player Rating at time of round]]","v":27},{"$f":"IF(ISERROR(_xlfn.NUMBERVALUE(Round_Ratings[[#This Row],[Round]]))=FALSE,_xlfn.NUMBERVALUE(Round_Ratings[[#This Row],[Round]]),COUNTIFS(A:A,Round_Ratings[[#This Row],[Tournament]],D:D,Round_Ratings[[#This Row],[Tournament End Date]]))","v":1},"No"]
["Ice Bowl in Paradise","D","28-Jan-2006","2006-01-28",{"$f":"YEAR(Round_Ratings[[#This Row],[Tournament End Date]])","v":2006},{"$f":"MONTH(Round_Ratings[[#This Row],[Tournament End Date]])","v":1},"MPG","2",66,897,"No",{"$f":"INDEX('Table 0 (2)'!D:D,MATCH(Round_Ratings[[#This Row],[Tournament End Date]],'Table 0 (2)'!A:A,1),1)","v":882},{"$f":"Round_Ratings[[#This Row],[Rating]]-Round_Ratings[[#This Row],[Player Rating at time of round]]","v":15},{"$f":"IF(ISERROR(_xlfn.NUMBERVALUE(Round_Ratings[[#This Row],[Round]]))=FALSE,_xlfn.NUMBERVALUE(Round_Ratings[[#This Row],[Round]]),COUNTIFS(A:A,Round_Ratings[[#This Row],[Tournament]],D:D,Round_Ratings[[#This Row],[Tournament End Date]]))","v":2},"No"]
["Ice Bowl in Paradise","D","28-Jan-2006","2006-01-28",{"$f":"YEAR(Round_Ratings[[#This Row],[Tournament End Date]])","v":2006},{"$f":"MONTH(Round_Ratings[[#This Row],[Tournament End Date]])","v":1},"MPG","1",65,892,"No",{"$f":"INDEX('Table 0 (2)'!D:D,MATCH(Round_Ratings[[#This Row],[Tournament End Date]],'Table 0 (2)'!A:A,1),1)","v":882},{"$f":"Round_Ratings[[#This Row],[Rating]]-Round_Ratings[[#This Row],[Player Rating at time of round]]","v":10},{"$f":"IF(ISERROR(_xlfn.NUMBERVALUE(Round_Ratings[[#This Row],[Round]]))=FALSE,_xlfn.NUMBERVALUE(Round_Ratings[[#This Row],[Round]]),COUNTIFS(A:A,Round_Ratings[[#This Row],[Tournament]],D:D,Round_Ratings[[#This Row],[Tournament End Date]]))","v":1},"No"]
["WFDF World Overall Championships","XC","27-Jun to 1-Jul-2005","2005-07-01",{"$f":"YEAR(Round_Ratings[[#This Row],[Tournament End Date]])","v":2005},{"$f":"MONTH(Round_Ratings[[#This Row],[Tournament End Date]])","v":7},"MPO","3",61,846,"No",{"$f":"INDEX('Table 0 (2)'!D:D,MATCH(Round_Ratings[[#This Row],[Tournament End Date]],'Table 0 (2)'!A:A,1),1)","v":876},{"$f":"Round_Ratings[[#This Row],[Rating]]-Round_Ratings[[#This Row],[Player Rating at time of round]]","v":-30},{"$f":"IF(ISERROR(_xlfn.NUMBERVALUE(Round_Ratings[[#This Row],[Round]]))=FALSE,_xlfn.NUMBERVALUE(Round_Ratings[[#This Row],[Round]]),COUNTIFS(A:A,Round_Ratings[[#This Row],[Tournament]],D:D,Round_Ratings[[#This Row],[Tournament End Date]]))","v":3},"No"]
["WFDF World Overall Championships","XC","27-Jun to 1-Jul-2005","2005-07-01",{"$f":"YEAR(Round_Ratings[[#This Row],[Tournament End Date]])","v":2005},{"$f":"MONTH(Round_Ratings[[#This Row],[Tournament End Date]])","v":7},"MPO","2",57,847,"No",{"$f":"INDEX('Table 0 (2)'!D:D,MATCH(Round_Ratings[[#This Row],[Tournament End Date]],'Table 0 (2)'!A:A,1),1)","v":876},{"$f":"Round_Ratings[[#This Row],[Rating]]-Round_Ratings[[#This Row],[Player Rating at time of round]]","v":-29},{"$f":"IF(ISERROR(_xlfn.NUMBERVALUE(Round_Ratings[[#This Row],[Round]]))=FALSE,_xlfn.NUMBERVALUE(Round_Ratings[[#This Row],[Round]]),COUNTIFS(A:A,Round_Ratings[[#This Row],[Tournament]],D:D,Round_Ratings[[#This Row],[Tournament End Date]]))","v":2},"No"]
["WFDF World Overall Championships","XC","27-Jun to 1-Jul-2005","2005-07-01",{"$f":"YEAR(Round_Ratings[[#This Row],[Tournament End Date]])","v":2005},{"$f":"MONTH(Round_Ratings[[#This Row],[Tournament End Date]])","v":7},"MPO","1",54,924,"No",{"$f":"INDEX('Table 0 (2)'!D:D,MATCH(Round_Ratings[[#This Row],[Tournament End Date]],'Table 0 (2)'!A:A,1),1)","v":876},{"$f":"Round_Ratings[[#This Row],[Rating]]-Round_Ratings[[#This Row],[Player Rating at time of round]]","v":48},{"$f":"IF(ISERROR(_xlfn.NUMBERVALUE(Round_Ratings[[#This Row],[Round]]))=FALSE,_xlfn.NUMBERVALUE(Round_Ratings[[#This Row],[Round]]),COUNTIFS(A:A,Round_Ratings[[#This Row],[Tournament]],D:D,Round_Ratings[[#This Row],[Tournament End Date]]))","v":1},"No"]
["Ice Bowl in Paradise","D","29-Jan-2005","2005-01-29",{"$f":"YEAR(Round_Ratings[[#This Row],[Tournament End Date]])","v":2005},{"$f":"MONTH(Round_Ratings[[#This Row],[Tournament End Date]])","v":1},"MPG","2",59,885,"No",{"$f":"INDEX('Table 0 (2)'!D:D,MATCH(Round_Ratings[[#This Row],[Tournament End Date]],'Table 0 (2)'!A:A,1),1)","v":873},{"$f":"Round_Ratings[[#This Row],[Rating]]-Round_Ratings[[#This Row],[Player Rating at time of round]]","v":12},{"$f":"IF(ISERROR(_xlfn.NUMBERVALUE(Round_Ratings[[#This Row],[Round]]))=FALSE,_xlfn.NUMBERVALUE(Round_Ratings[[#This Row],[Round]]),COUNTIFS(A:A,Round_Ratings[[#This Row],[Tournament]],D:D,Round_Ratings[[#This Row],[Tournament End Date]]))","v":2},"No"]
["Ice Bowl in Paradise","D","29-Jan-2005","2005-01-29",{"$f":"YEAR(Round_Ratings[[#This Row],[Tournament End Date]])","v":2005},{"$f":"MONTH(Round_Ratings[[#This Row],[Tournament End Date]])","v":1},"MPG","1",56,927,"No",{"$f":"INDEX('Table 0 (2)'!D:D,MATCH(Round_Ratings[[#This Row],[Tournament End Date]],'Table 0 (2)'!A:A,1),1)","v":873},{"$f":"Round_Ratings[[#This Row],[Rating]]-Round_Ratings[[#This Row],[Player Rating at time of round]]","v":54},{"$f":"IF(ISERROR(_xlfn.NUMBERVALUE(Round_Ratings[[#This Row],[Round]]))=FALSE,_xlfn.NUMBERVALUE(Round_Ratings[[#This Row],[Round]]),COUNTIFS(A:A,Round_Ratings[[#This Row],[Tournament]],D:D,Round_Ratings[[#This Row],[Tournament End Date]]))","v":1},"No"]

{"sheet":"Events","index":2,"n_rows":35,"n_cols":4,"rows_kept":35,"hidden":true}
["Tournament","Event Average Rating","Event Date","Year"]
["Ice Bowl in Paradise",906,"2005-01-29",2005]
["30th Wintertime Open",900.3,"2008-02-17",2008]
["Fling X",896,"2006-06-03",2006]
["Ice Bowl in Paradise",894.5,"2006-01-28",2006]
["Fling XII",880,"2008-05-17",2008]
["28th Wintertime Open",875.3,"2006-02-19",2006]
["32nd Wintertime Open",873.3,"2010-02-14",2010]
["Fling XIII",873,"2009-05-16",2009]
["31st Wintertime Open",873,"2009-02-15",2009]
["WFDF World Overall Championships",872.3,"2005-07-01",2005]
["35th Annual Wintertime Open - Pro",867,"2013-02-17",2013]
["Ice Bowl In Paradise",867,"2010-01-23",2010]
["US Open Flying Disc Championships",865.3,"2008-07-19",2008]
["33rd Annual Wintertime Open",863,"2011-02-20",2011]
["Pasadena Senior Olympics Disc Golf 2019",856,"2019-06-02",2019]
["2010 PDGA Professional Disc Golf World Championships",842.8,"2010-07-31",2010]
["34th annual Wintertime Open - Pro",836.7,"2012-02-19",2012]
["Kiss The Sky",834.5,"2006-07-23",2006]
["37th Annual Wintertime Open - PRO",828.3,"2015-02-15",2015]
["36th Annual wintertime Open",828,"2014-02-16",2014]
["2012 US Open Overall Flying Disc Championships",826.5,"2012-06-30",2012]
["Ice Bowl In Paradise 2018",823,"2018-01-20",2018]
["40th Annual Wintertime Open - Pro presented by CalShieldHomeLoans.com",821.3,"2018-02-18",2018]
["The 41st Annual Wintertime Open (Pros) Presented By Supreme Flight",817.5,"2019-02-17",2019]
["2013 PDGA Professional Disc Golf World Championships",816.5,"2013-08-10",2013]
["2015 WFDF World Overall Championships",806,"2015-07-25",2015]
["WFDF World Overall Flying Disc Championships",805,"2011-07-20",2011]
["2019 World Flying Disc Federation Overall Championships Sponsored by Discraft- Disc Golf Event",804,"2019-07-10",2019]
["The Ed Headrick Disc Golf Hall of Fame Classic presented by REC TEC Grills",802.3,"2018-10-14",2018]
["Pasadena Senior Games 2018",797.5,"2018-06-03",2018]
["The 42nd Annual Wintertime Open Presented by Paul McBeth (Pro Weekend)",791.7,"2020-02-16",2020]
["Pasadena Senior Olympics Disc Golf",784,"2016-06-18",2016]
["The Ed Headrick Disc Golf Hall of Fame Classic presented by REC TEC Grills - A Tier",780,"2019-10-13",2019]
["Ed Headrick Disc Golf Hall of Fame Classic presented by ProActive Sports Disc Golf - A-Tier",779,"2017-10-15",2017]

{"sheet":"Select PDGA Number","index":3,"n_rows":2,"n_cols":1,"rows_kept":2}
["PDGA"]
["3"]

{"sheet":"Player Summary","index":4,"n_rows":18,"n_cols":2,"rows_kept":18,"hidden":true}
["Most Recent 10% of Rounds"]
["Average",{"v":798.3333333333334,"d":"798.3"}]
["% Positive Rounds",{"v":0.1111111111111111,"d":"11.1%"}]
["Average positive Difference ",{"v":50,"d":"50.0"}]
["Average negative Difference",{"v":-27.25,"d":"-27.3"}]
["Rating Trend Score",-18.7]
[]
["Previous 10% of Rounds"]
["Average",{"v":809.5555555555555,"d":"809.6"}]
["% Positive Rounds",{"v":0.5555555555555556,"d":"55.6%"}]
["Average Positive Difference",22.6]
["Average Negative Difference",{"v":-8.666666666666666,"d":"-8.7"}]
["Rating Trend Score","+8.7"]
[]
["Top Events All Time"]
[{"$f":"IF(ISBLANK(Events!A2)=TRUE(),\"More tournaments needed\",Events!A2&\" - \"&Events!D2)","v":"Ice Bowl in Paradise - 2005"},906]
[{"$f":"IF(ISBLANK(Events!A3)=TRUE(),\"More tournaments needed\",Events!A3&\" - \"&Events!D3)","v":"30th Wintertime Open - 2008"},900.3]
[{"$f":"IF(ISBLANK(Events!A4)=TRUE(),\"More tournaments needed\",Events!A4&\" - \"&Events!D4)","v":"Fling X - 2006"},896]